{"text_format":"1","workbook":"xlsx","n_sheets":18,"sheets":["Building Information","Compliance Paths","Part 3 - Prescriptive","Part 3 -  Details","Part 3 - Trade-off","Part 4 - Prescriptive","Part 4 - Details","Part 4 - Trade-off","Part 5 - Prescriptive","Part 5 - Details","Part 5 - Trade-off","Part 6 - Prescriptive","Part 6 - Details","Part 6 - Trade-off","Part 7 - Prescriptive","Part 8 - Performance","Validation Reference","Code Tables"],"not_rendered":{"charts":0,"images":25,"macros":1,"external_links":0,"defined_names":10,"comments":0,"pivot_tables":0},"unopened":[],"bounds":{"document_bytes":16777216,"sheet_cells":100000,"rows_first":2000,"rows_last":500,"rows_between":2000,"halvings":0,"cell_chars":16384,"cell_head_chars":4096},"cells_cut":0,"cells_raw":0,"read":"whole","date_system":"1900"}

{"sheet":"Building Information","index":0,"n_rows":55,"n_cols":15,"rows_kept":55,"cut":false,"hidden":false,"merged":[[28,0,28,1],[16,0,16,1],[16,2,16,6],[36,3,36,6],[30,3,30,6],[34,3,34,6],[34,0,34,1],[35,0,35,1],[36,0,36,1],[31,0,31,1],[31,3,31,6],[33,3,33,6],[33,0,33,1],[30,0,30,1],[38,0,38,8],[22,2,22,6],[37,0,37,1],[27,0,27,1],[37,3,37,6],[27,3,27,6],[25,0,25,1],[25,3,25,6],[24,0,24,1],[24,3,24,6],[22,0,22,1],[17,7,37,8],[17,0,17,1],[20,0,20,1],[35,3,35,6],[29,0,29,1],[0,0,5,8],[15,0,15,6],[32,0,32,1],[32,3,32,6],[6,0,6,8],[7,0,7,8],[8,0,13,8],[14,0,14,8],[20,2,20,6],[21,0,21,1],[21,2,21,6],[19,0,19,1],[19,2,19,6],[18,0,18,1],[18,2,18,6],[17,2,17,6]]}
["NECB 2017 Compliance Checklist"]
[]
[]
[]
[]
[null,null,null,null,null,null,null,null,null,null,null,null,null,null,"Pre-build Project Summary"]
["About this Document",null,null,null,null,null,null,null,null,null,null,null,null,null,"As-built Project Summary"]
[]
["This form provides information to show compliance with requirements to meet the National Energy Code for Buildings (NECB) 2017. For details please consult NECB 2017 Division B, Appendix A;  A-1.1.2.1.\nThis document is to be used alongside the code document NECB 2017. Any textual interpretation will apply only to the specific language of the code document NECB 2017, to which all users of this compliance spreadsheet are referred.\n\n\n"]
[]
[]
[]
[]
[]
["Building Information","building information"]
[null,null,null,null,null,null,null,"Building Permit Number"," (for internal use only)"]
["Submission Type"]
["Date (yyyy-mm-dd)",null,null,null,null,null,null,"Building Official Notes (for internal use only)"]
["Project Name"]
["Project Address"]
["Contact Person"]
["Contact Email"]
["Contact Phone Number"]
["Building Use (retail, school, etc.)"]
["Type of Construction"]
["Conditioned Space (m2)"]
["Unconditioned Space (m2)"]
["Semi-heated building",null,"No"]
["Core and shell building"]
["Vestibule included?"]
["Gross Wall Area (m2)"]
["Vertical Fenestration Area (m2)",null,null,"FDWR:"]
["Door Area (m2)",null,null,{"$f":"(C32+C33)/C31","v":{"$error":"#DIV/0!"}}]
["Gross Roof Area (m2)",null,null,"Skylight to roof ratio:"]
["Horizontal Fenestration (Skylights) Area (m2)",null,null,{"$f":"C35/C34","v":{"$error":"#DIV/0!"}}]
["Heating Degree Days 18C"]
["Heating Degree Days 15C"]
["Climate Zone of Building Location",null,{"$f":"IF(OR(D55=TRUE, E55=TRUE), \"\", IF(C28='Validation Reference'!A3, VLOOKUP(TRUE, D49:F54,3,FALSE),VLOOKUP(TRUE, E49:F54,2,FALSE) ))","v":""}]
[]
[]
[]
[]
[]
[]
[]
[]
[]
[null,null,null,"HDD 18","HDD 15"]
[null,null,null,{"$f":"IF($C$36<3000, TRUE, FALSE)","v":true},{"$f":"IF($C$37<3000, TRUE, FALSE)","v":true},{"$f":"'Validation Reference'!C2","v":"Zone 4: < 3000 HDD"}]
[null,null,null,{"$f":"IF(OR($C$36=3000, AND($C$36>3000, $C$36<4000)), TRUE, FALSE)","v":false},{"$f":"IF(OR($C$37=3000, AND($C$37>3000, $C$37<4000)), TRUE, FALSE)","v":false},{"$f":"'Validation Reference'!C3","v":"Zone 5: 3000 to 3999 HDD"}]
[null,null,null,{"$f":"IF(OR($C$36=4000, AND($C$36>4000, $C$36<5000)), TRUE, FALSE)","v":false},{"$f":"IF(OR($C$37=4000, AND($C$37>4000, $C$37<5000)), TRUE, FALSE)","v":false},{"$f":"'Validation Reference'!C4","v":"Zone 6: 4000 to 4999 HDD"}]
[null,null,null,{"$f":"IF(OR($C$36=5000, AND($C$36>5000, $C$36<6000)), TRUE, FALSE)","v":false},{"$f":"IF(OR($C$37=5000, AND($C$37>5000, $C$37<6000)), TRUE, FALSE)","v":false},{"$f":"'Validation Reference'!C5","v":"Zone 7A: 5000 to 5999 HDD"}]
[null,null,null,{"$f":"IF(OR($C$36=6000, AND($C$36>6000, $C$36<7000)), TRUE, FALSE)","v":false},{"$f":"IF(OR($C$37=6000, AND($C$37>6000, $C$37<7000)), TRUE, FALSE)","v":false},{"$f":"'Validation Reference'!C6","v":"Zone 7B: 6000 to 6999 HDD"}]
[null,null,null,{"$f":"IF(OR($C$36=7000,$C$36>7000), TRUE, FALSE)","v":false},{"$f":"IF(OR($C$37=7000,$C$37>7000), TRUE, FALSE)","v":false},{"$f":"'Validation Reference'!C7","v":"Zone 8: ≥ 7000 HDD"}]
[null,null,null,{"$f":"IF(AND(OR($C$28=\"No\",$C$28=\"\"), HDD = \"\"), TRUE, FALSE)","v":true},{"$f":"IF(AND(OR($C$28=\"Yes\",$C$28=\"\"), C37 = \"\"), TRUE, FALSE)","v":false}]

{"sheet":"Compliance Paths","index":1,"n_rows":32,"n_cols":6,"rows_kept":32,"cut":false,"hidden":false,"merged":[[16,5,16,16383],[21,5,21,8],[0,0,1,8],[26,5,26,8],[31,5,31,8],[27,0,28,8],[29,0,29,4],[29,5,29,8],[2,0,3,8],[4,0,4,4],[9,0,9,4],[14,0,14,4],[11,5,11,8],[6,5,6,8]]}
["NECB 2017 Compliance Paths"]
[]
["Select the compliance path you will use for each Part of the NECB.\nProvide name and email of each contact."]
[]
["Building Envelope (NECB Part 3):"]
[null,null,null,null,null,"Building Envelope Contact"]
[null,null,null,null,null," "]
[]
[]
["Lighting (NECB Part 4):"]
[1,null,null,null,null,"Lighting Contact"]
[null,null,null,null,null," "]
[]
[]
["HVAC (NECB Part 5):"]
[0,null,null,null,null,"HVAC Contact"]
[null,null,null,null,null," "]
[]
[]
["Service Water Heating (NECB Part 6):"]
[0,null,null,null,null,"Service Water Heating Contact"]
[null,null,null,null,null," "]
[]
[]
["Electrical Power Systems and Motors (NECB Part 7):"]
[0,null,null,null,null,"Electrical Contact "]
[null,null,null,null,null," "]
[]
[]
["Building Energy Performance Compliance Path (NECB Part 8):"]
[1,null,null,null,null,"Energy Modeling Contact"]
[null,null,null,null,null," "]

{"sheet":"Part 3 - Prescriptive","index":2,"n_rows":51,"n_cols":9,"rows_kept":51,"cut":false,"hidden":true,"merged":[[1,8,7,8],[2,1,2,5],[0,0,0,8]]}
["Part 3 - Prescriptive"]
[{"$f":"'Building Information'!A19:B19","v":"Project Name"},{"$f":"'Building Information'!C19","v":0},null,null,null,null,null,null,{"$f":"IF(SUM(G21:G47) = COUNTA(A13:A51),\"NECB 2015 Compliant\", \"\")","v":""}]
[{"$f":"'Building Information'!A18:B18","v":"Date (yyyy-mm-dd)"},{"$f":"'Building Information'!C18","v":"00:00:00"}]
[{"$f":"'Building Information'!A21:B21","v":"Contact Person"},{"$f":"'Building Information'!C21","v":0}]
["Building Envelope Contact",{"$f":"'Compliance Paths'!F7","v":" "}]
["Climate Zone",{"$f":"'Building Information'!C38","v":""}]
[null,{"$f":"IF('Building Information'!C28= \"No\", \"Fully Heated Building\", \"Semi-heated Building\")","v":"Fully Heated Building"}]
["Building Permit Number",{"$f":"'Building Information'!I16","v":" (for internal use only)"}]
[]
["#","Question",null,null,"Requirements","Units",null,"Compliant?","Additional Comments"]
[null,"Section 3.1 - General"]
[1,{"$f":"CONCATENATE(C12,E12,F12, D12)","v":"This Section is complete for the building envelope in buildings equipped with space-conditioning system or with provisions for future installation of such systems and for buildings whose heating and/or cooling system output capacity is equal to or greater than 10 W/m2 of floor surface area, as per Article 3.1.1.2."},"This Section is complete for the building envelope in buildings equipped with space-conditioning system or with provisions for future installation of such systems and for buildings whose heating and/or cooling system output capacity is equal to or greater than 10 W/m2 of floor surface area, as per Article 3.1.1.2."]
[2,{"$f":"CONCATENATE(C13,E13,F13, D13)","v":"The thermal characteristics of the building envelope (as identified in the Building Information sheet) are determined through calculations and tests as described in Article 3.1.1.5. Attach thermal bridging calculations with references to published literature."},"The thermal characteristics of the building envelope (as identified in the Building Information sheet) are determined through calculations and tests as described in Article 3.1.1.5. Attach thermal bridging calculations with references to published literature."]
[3,{"$f":"CONCATENATE(C14,E14,F14, D14)","v":"The fenestration and door areas of the building envelope are calculated as described in Article 3.1.1.6."},"The fenestration and door areas of the building envelope are calculated as described in Article 3.1.1.6."]
[4,{"$f":"CONCATENATE(C15,E15,F15, D15)","v":"The overall thermal transmittance of all building envelope assemblies is calculated as described in Article 3.1.1.7."},"The overall thermal transmittance of all building envelope assemblies is calculated as described in Article 3.1.1.7."]
[null,"Section 3.2 - Prescriptive Path"]
[5,{"$f":"CONCATENATE(C17,E17,F17, D17)","v":"The building envelope is designed to avoid increasing the overall thermal transmittance of the insulation material due to the factors described in Sentence 3.2.1.1.(1) or the effect of the factors on the overall thermal transmittance is calculated in accordance with Article 3.1.1.5."},"The building envelope is designed to avoid increasing the overall thermal transmittance of the insulation material due to the factors described in Sentence 3.2.1.1.(1) or the effect of the factors on the overall thermal transmittance is calculated in accordance with Article 3.1.1.5."]
["6a","Where mechanical ducts and chases or electrical system components are placed within and parallel to the building envelope, the overall thermal transmittance of the building envelope at the projected area or electrical system components is not increased, as per Sentence 3.2.1.2.(1).","Where mechanical ducts and chases or electrical system components are placed within and parallel to the building envelope, the overall thermal transmittance of the building envelope at the projected area or electrical system components is not increased, as per Sentence 3.2.1.2.(1)."]
["6b","Joints between components of the building envelope are insulated to provide continuity across such joints, according to Sentence 3.2.1.2.(2).","Joints between components of the building envelope are insulated to provide continuity across such joints, according to Sentence 3.2.1.2.(2).",null,null,null,null,null,2]
[7,"The overall thermal transmittance of the building assemblies separating conditioned spaces that are intended to be heated to temperatures that differ by more than 10°C is not greater than that obtained with the equation in Sentence 3.2.1.3.(1).","The overall thermal transmittance of the building assemblies separating conditioned spaces that are intended to be heated to temperatures that differ by more than 10°C is not greater than that obtained with the equation in Sentence 3.2.1.3.(1)."]
[8,{"$f":"CONCATENATE(C21,E21,F21,D21)","v":{"$error":"#N/A"}},"The building's FDWR is less than or equal to "," as per the requirements of Article 3.2.1.4. NB: field automatically updates based on the information entered in the Building Information sheet.",{"$f":"ROUND(VLOOKUP(1, 'Code Tables'!A24:G25,VLOOKUP('Building Information'!C38,'Validation Reference'!C2:D7,2)),2)","v":{"$error":"#N/A"}},null,{"$f":"IF(OR(H21=\"N/A\",H21=\"Yes\")=TRUE, 1, 0)","v":0},{"$f":"IF(AND('Building Information'!C31<>0, 'Building Information'!C32<>\"\", 'Building Information'!C33<>\"\"), IF(E21>=(('Building Information'!C32+'Building Information'!C33)/'Building Information'!C31),\"Yes\",\"No\"),\"Building Information Tab Incomplete\")","v":"Building Information Tab Incomplete"}]
[9,{"$f":"CONCATENATE(C22,E22,F22,D22)","v":"The building's skylight to roof ratio is less than or equal to 0.02 to as per the requirements of Article 3.2.1.4. NB: field automatically updates based on the information entered in the Building Information sheet."},"The building's skylight to roof ratio is less than or equal to "," to as per the requirements of Article 3.2.1.4. NB: field automatically updates based on the information entered in the Building Information sheet.",0.02,null,{"$f":"IF(OR(H22=\"N/A\",H22=\"Yes\")=TRUE, 1, 0)","v":0},{"$f":"IF(AND('Building Information'!C35<>\"\", 'Building Information'!C34<>\"\"), IF(E22>=('Building Information'!C35/'Building Information'!C34),\"Yes\",\"No\"),\"Building Information Tab Incomplete\")","v":"Building Information Tab Incomplete"}]
["10a",{"$f":"CONCATENATE(C23,E23,F23,D23)","v":"Applicable doors that separate conditioned spaces from the exterior are protected with an enclosed vestibule that meet the requirements of Sentence 3.2.2.1.(1)."},"Applicable doors that separate conditioned spaces from the exterior are protected with an enclosed vestibule that meet the requirements of Sentence 3.2.2.1.(1)."]
["10b",{"$f":"CONCATENATE(C24,E24,F24,D24)","v":"As per Sentence 3.2.2.1.(2), applicable vestibules are designed so that users passing through are not required to open the interior and exterior doors at the same time."},"As per Sentence 3.2.2.1.(2), applicable vestibules are designed so that users passing through are not required to open the interior and exterior doors at the same time."]
["11a",{"$f":"CONCATENATE(C25,E25,F25, D25)","v":{"$error":"#N/A"}},"Walls have overall thermal transmittances no greater than ",", as specified in Table 3.2.2.2. Please complete the Part 3 - Details tab.",{"$f":"VLOOKUP(\"Walls\", 'Code Tables'!B4:H4,VLOOKUP('Building Information'!C38,'Validation Reference'!C2:D7,2))","v":{"$error":"#N/A"}}," W/m2∙K",{"$f":"IF(OR(H25=\"N/A\",H25=\"Yes\")=TRUE, 1, 0)","v":0}]
["11b",{"$f":"CONCATENATE(C26,E26,F26, D26)","v":{"$error":"#N/A"}},"Roofs have overall thermal transmittances no greater than ",", as specified in Table 3.2.2.2. Please complete the Part 3 - Details tab.",{"$f":"VLOOKUP(\"Roofs\", 'Code Tables'!B5:H5,VLOOKUP('Building Information'!C38,'Validation Reference'!C2:D7,2))","v":{"$error":"#N/A"}}," W/m2∙K",{"$f":"IF(OR(H26=\"N/A\",H26=\"Yes\")=TRUE, 1, 0)","v":0}]
["11c",{"$f":"CONCATENATE(C27,E27,F27, D27)","v":{"$error":"#N/A"}},"Floors have overall thermal transmittances no greater than ",", as specified in Table 3.2.2.2. Please complete the Part 3 - Details tab.",{"$f":"VLOOKUP(\"Floors\", 'Code Tables'!B6:H6,VLOOKUP('Building Information'!C38,'Validation Reference'!C2:D7,2))","v":{"$error":"#N/A"}}," W/m2∙K",0]
["11d",{"$f":"CONCATENATE(C28,E28,F28, D28)","v":"As per Sentence 3.2.2.2.(3), the overall thermal transmittance of applicable portions of a foundation wall that are above the ground meets the requirements of Table 3.2.3.1."},"As per Sentence 3.2.2.2.(3), the overall thermal transmittance of applicable portions of a foundation wall that are above the ground meets the requirements of Table 3.2.3.1.",null,null,null,0]
["11e",{"$f":"CONCATENATE(C29,E29,F29, D29)","v":"Surfaces with embedded radiant heating or cooling elements have a thermal transmittance no greater than 80% of what is specified in Table 3.2.2.2., as required by Sentence 3.2.2.2.(3)."},"Surfaces with embedded radiant heating or cooling elements have a thermal transmittance no greater than 80% of what is specified in Table 3.2.2.2., as required by Sentence 3.2.2.2.(3)."]
[12,{"$f":"CONCATENATE(C30,E30,F30,D30)","v":{"$error":"#N/A"}},"The overall thermal transmittance of applicable fenestration is not more than ",", as specified in Table 3.2.2.3. Please complete the Part 3 - Details tab.",{"$f":"VLOOKUP(\"Fenestration\", 'Code Tables'!B3:H11,VLOOKUP('Building Information'!C38,'Validation Reference'!C2:D7,2))","v":{"$error":"#N/A"}}," W/m2∙K",0]
["13a",{"$f":"CONCATENATE(C31,E31,F31,\".\", D31)","v":{"$error":"#N/A"}},"The overall thermal transmittance of applicable doors is not more than "," as specified in Table 3.2.2.4. or the conditions of Sentence 3.2.2.4.(3) are met. Please complete the Part 3 - Details tab as applicable. ",{"$f":"VLOOKUP(\"Doors\",'Code Tables'!B8:H8,VLOOKUP('Building Information'!C38,'Validation Reference'!C2:D7,2))","v":{"$error":"#N/A"}}," W/m2∙K",0]
["13b",{"$f":"CONCATENATE(C32,E32,F32,\".\", D32)","v":"As per Sentence 3.2.2.4.(4), access hatches that are part of a building envelope have a thermal transmittance of no more than 1.3  W/m2∙K."},"As per Sentence 3.2.2.4.(4), access hatches that are part of a building envelope have a thermal transmittance of no more than 1.3 ",null,null," W/m2∙K"]
["14a",{"$f":"CONCATENATE(C33,E33,F33,D33)","v":{"$error":"#N/A"}},"The overall thermal transmittance of walls or portions thereof that are below the exterior ground level and are part of the building envelope is not greater than ",", as described in Article 3.2.3.1. Please complete the Part 3 - Details tab as applicable.",{"$f":"VLOOKUP(\"Walls\",'Code Tables'!Z4:AF4,VLOOKUP('Building Information'!C38,'Validation Reference'!C2:D7,2))","v":{"$error":"#N/A"}}," W/m2∙K",0]
["14b","Insulation on walls or portions thereof that are in contact with the ground extends 2.4 m down from ground level or to the bottom of the wall, per Sentence 3.2.3.1.(3).","Insulation on walls or portions thereof that are in contact with the ground extends 2.4 m down from ground level or to the bottom of the wall, per Sentence 3.2.3.1.(3)."]
["14c","As per Sentence 3.2.3.1.(4), walls with embedded radiant heating cables or heating or cooling pipes or membranes have an overall thermal transmittance no greater than 80% of that required by Sentence 3.2.3.1.(2).","As per Sentence 3.2.3.1.(4), walls with embedded radiant heating cables or heating or cooling pipes or membranes have an overall thermal transmittance no greater than 80% of that required by Sentence 3.2.3.1.(2)."]
["14d","Where the top of the footing is less than 0.6 m below the exterior of the ground level, the floor is insulated as specified in Sentence 3.2.3.1.(5) for a distance not less than 1.2 m from the perimeter.","Where the top of the footing is less than 0.6 m below the exterior of the ground level, the floor is insulated as specified in Sentence 3.2.3.1.(5) for a distance not less than 1.2 m from the perimeter."]
["14e",{"$error":"#N/A"},"The overall thermal transmittance of below-ground roofs is not greater than ",", as described in Article 3.2.3.2. Please complete the Part 3 - Details tab.",{"$f":"VLOOKUP(\"Roofs\",'Code Tables'!Z5:AF5,VLOOKUP('Building Information'!C38,'Validation Reference'!C2:D7,2))","v":{"$error":"#N/A"}}," W/m2∙K",0]
["14f",{"$error":"#N/A"},"The overall thermal transmittance of floors separating conditioned space from the ground that are less than 0.6 m below ground is not greater than ",", as described in Sentence 3.2.3.3.(1). Please complete the Part 3 - Details tab.",{"$f":"VLOOKUP(\"Floors\",'Code Tables'!Z6:AF6,VLOOKUP('Building Information'!C38,'Validation Reference'!C2:D7,2))","v":{"$error":"#N/A"}}," W/m2∙K",0]
["14g","Floors-on-ground with no embedded heating or cooling are insulated according to the requirements of Sentence 3.2.3.3.(3).","Floors-on-ground with no embedded heating or cooling are insulated according to the requirements of Sentence 3.2.3.3.(3)."]
["14h","Floors-on-ground with embedded heating and cooling pipes are insulated according to the requirements of Sentence 3.2.3.3.(4).","Floors-on-ground with embedded heating and cooling pipes are insulated according to the requirements of Sentence 3.2.3.3.(4)."]
["14i","Applicable floors-on-ground are insulated vertically around the perimeter of the floor in accordance with Sentence 3.2.3.3.(5).","Applicable floors-on-ground are insulated vertically around the perimeter of the floor in accordance with Sentence 3.2.3.3.(5)."]
[15,"The building envelope is designed and constructed with a continuous air barrier system comprised of air barrier assemblies to control air leakage into and out of the conditioned space, in accordance with Sentence 3.2.4.1.(1).","The building envelope is designed and constructed with a continuous air barrier system comprised of air barrier assemblies to control air leakage into and out of the conditioned space, in accordance with Sentence 3.2.4.1.(1).",null,null,null,0]
["16a","All opaque building assemblies that act as environmental separators include an air barrier assembly conforming to Sentence 3.2.4.2.(2) or 3.2.4.2.(3).","All opaque building assemblies that act as environmental separators include an air barrier assembly conforming to Sentence 3.2.4.2.(2) or 3.2.4.2.(3).",null,null,null,0]
["16b","Metal and glass curtain walls that act as environmental separators have an air leakage rate not greater than that specified in Sentence  3.2.4.3.(2).","Metal and glass curtain walls that act as environmental separators have an air leakage rate not greater than that specified in Sentence  3.2.4.3.(2).",null,null,null,0]
["16c","Fixed windows and skylights that act as environmental separators have an air leakage rate not greater than that specified in Sentence 3.2.4.3.(3).","Fixed windows and skylights that act as environmental separators have an air leakage rate not greater than that specified in Sentence 3.2.4.3.(3).",null,null,null,0]
["16d","Operable windows and skylights that act as environmental separators have an air leakage rate not greater than that specified in Sentence 3.2.4.3.(4).","Operable windows and skylights that act as environmental separators have an air leakage rate not greater than that specified in Sentence 3.2.4.3.(4).",null,null,null,0]
["17a",{"$f":"CONCATENATE(C47,E47,F47,,D47)","v":"Doors that act as environmental separators have an air leakage rate not greater than that specified in Sentence 3.2.4.4.(1)."},"Doors that act as environmental separators have an air leakage rate not greater than that specified in Sentence 3.2.4.4.(1).",null,null,null,0]
["17b",{"$f":"CONCATENATE(C48,E48,F48,,D48)","v":"Revolving doors, automatic commercial sliding doors, and overhead doors that act as environmental separators have an air leakage rate not greater than that specified in Sentence 3.2.4.4.(2)., when tested according to the requirements of Sentence 3.2.4.4.(2)."},"Revolving doors, automatic commercial sliding doors, and overhead doors that act as environmental separators have an air leakage rate not greater than that specified in Sentence 3.2.4.4.(2)., when tested according to the requirements of Sentence 3.2.4.4.(2)."]
["17c",{"$f":"CONCATENATE(C49,E49,F49,,D49)","v":"Main entry exterior doors that act as environmental separators meet the requirements of Sentence 3.2.4.4.(3)."},"Main entry exterior doors that act as environmental separators meet the requirements of Sentence 3.2.4.4.(3)."]
["17d",{"$f":"CONCATENATE(C50,E50,F50,,D50)","v":"Loading docks that interface with truck boxes have weather seals, per Sentence 3.2.4.4.(4)."},"Loading docks that interface with truck boxes have weather seals, per Sentence 3.2.4.4.(4)."]
[18,{"$f":"CONCATENATE(C51,E51,F51,,D51)","v":"Fireplaces are equipped with doors or enclosures to restrict air movement through the chimney when the fireplace is not in use, per Sentence 3.2.4.5.(1)."},"Fireplaces are equipped with doors or enclosures to restrict air movement through the chimney when the fireplace is not in use, per Sentence 3.2.4.5.(1)."]

{"sheet":"Part 3 -  Details","index":3,"n_rows":7,"n_cols":11,"rows_kept":7,"cut":false,"hidden":true,"merged":[[0,0,0,9],[1,0,1,9]]}
["Part 3 - Details"]
["Please complete the following sheet for all envelope assemblies in the building."]
["Assembly #","Assembly Name","Assembly Type\n(Please add unique assembly name)","Design U-Value W/(m2∙K)",null,"Code U-Value W/(m2∙K)","Assembly Separating two Conditioned Spaces","Temperature of Colder Conditioned Space  ºC","Temperature of Warmer Conditioned Space ºC","January Designed Temperature ºC"]
[{"$f":"ROW(A4)-3","v":1},null,null,null,{"$f":"IF(C4=\"\",\"\",VLOOKUP(C4, 'Code Tables'!$B$4:$H$11,VLOOKUP('Building Information'!$C$38,'Validation Reference'!$C$2:$D$7,2),FALSE))","v":""},{"$f":"IF(C4<>\"\",ROUND(IF(G4=\"Yes\", ((I4-J4)/(I4-(0.5*H4)-(0.5*J4)))*E4,E4),3),\"\")","v":""},null,null,null,null,{"$f":"(I4-J4)/((I4-(0.5*H4)-(0.5*J4))*F4)","v":{"$error":"#VALUE!"}}]
[{"$f":"ROW(A5)-3","v":2},null,null,null,{"$f":"IF(C5=\"\",\"\",VLOOKUP(C5, 'Code Tables'!$B$4:$H$11,VLOOKUP('Building Information'!$C$38,'Validation Reference'!$C$2:$D$7,2),FALSE))","v":""},{"$f":"IF(C5<>\"\",ROUND(IF(G5=\"Yes\", ((I5-J5)/(I5-(0.5*H5)-(0.5*J5)))*E5,E5),3),\"\")","v":""},null,null,null,null,{"$f":"(I5-J5)/((I5-(0.5*H5)-(0.5*J5))*F5)","v":{"$error":"#VALUE!"}}]
[3,null,null,null,{"$f":"IF(C6=\"\",\"\",VLOOKUP(C6, 'Code Tables'!$B$4:$H$11,VLOOKUP('Building Information'!$C$38,'Validation Reference'!$C$2:$D$7,2),FALSE))","v":""},{"$f":"IF(C6<>\"\",ROUND(IF(G6=\"Yes\", ((I6-J6)/(I6-(0.5*H6)-(0.5*J6)))*E6,E6),3),\"\")","v":""},null,null,null,null,{"$error":"#VALUE!"}]
[4,null,null,null,{"$f":"IF(C7=\"\",\"\",VLOOKUP(C7, 'Code Tables'!$B$4:$H$11,VLOOKUP('Building Information'!$C$38,'Validation Reference'!$C$2:$D$7,2),FALSE))","v":""},{"$f":"IF(C7<>\"\",ROUND(IF(G7=\"Yes\", ((I7-J7)/(I7-(0.5*H7)-(0.5*J7)))*E7,E7),3),\"\")","v":""},null,null,null,null,{"$error":"#VALUE!"}]

{"sheet":"Part 3 - Trade-off","index":4,"n_rows":47,"n_cols":9,"rows_kept":47,"cut":false,"hidden":true,"merged":[[1,8,6,8],[0,0,0,8],[2,1,2,5]]}
["Part 3 - Trade-off"]
[{"$f":"'Building Information'!A19:B19","v":"Project Name"},{"$f":"'Building Information'!C19","v":0},null,null,null,null,null,null,{"$f":"IF(SUM(G12:G20) = 33,\"NECB 2015 Compliant\", \"\")","v":""}]
[{"$f":"'Building Information'!A18:B18","v":"Date (yyyy-mm-dd)"},{"$f":"'Building Information'!C18","v":"00:00:00"}]
[{"$f":"'Building Information'!A21:B21","v":"Contact Person"},{"$f":"'Building Information'!C21","v":0}]
["Building Envelope Contact",{"$f":"'Compliance Paths'!F7","v":" "}]
["Climate Zone",{"$f":"'Building Information'!C38","v":""}]
[null,{"$f":"IF('Building Information'!C28= \"No\", \"Fully Heated Building\", \"Semi-heated Building\")","v":"Fully Heated Building"}]
["Building Permit Number",{"$f":"'Building Information'!I16","v":" (for internal use only)"}]
[]
["#","Question",null,null,"Requirements","Units",null,"Compliant?","Additional Comments"]
[null,"Section 3.1 - General"]
[1,{"$f":"CONCATENATE(C12,E12,F12, D12)","v":"The thermal characteristics of the buildings envelope are determined through calculations and tests as described in Article 3.1.1.5."},"The thermal characteristics of the buildings envelope are determined through calculations and tests as described in Article 3.1.1.5."]
[2,{"$f":"CONCATENATE(C13,E13,F13, D13)","v":"The fenestration and door areas of the building envelope are calculated as described in Article 3.1.1.6."},"The fenestration and door areas of the building envelope are calculated as described in Article 3.1.1.6."]
[3,{"$f":"CONCATENATE(C14,E14,F14, D14)","v":"The overall thermal transmittance of each building envelope assembly is calculated as described in Article 3.1.1.7."},"The overall thermal transmittance of each building envelope assembly is calculated as described in Article 3.1.1.7."]
[null,{"$f":"IF(OR('Building Information'!C25=\"Addition to existing building\",'Building Information'!C28=\"Yes\"),\"The trade-off path cannot be used on a semi-heated building or on an addition.\", \"Section 3.3 - Trade-off\")","v":"Section 3.3 - Trade-off"}]
["4a",{"$f":"CONCATENATE(C16,E16,F16, D16)","v":"Vertical above-ground portions of the building envelope are only permitted to be traded-off against other vertical above-ground portion of the building envelope, per Sentence 3.3.1.1.(3)."},"Vertical above-ground portions of the building envelope are only permitted to be traded-off against other vertical above-ground portion of the building envelope, per Sentence 3.3.1.1.(3).",null,null,null,{"$f":"IF(OR(H16=\"N/A\",H16=\"Yes\")=TRUE, 1, 0)","v":0}]
["4b","Horizontal above-ground portions of the building envelope are only permitted to be traded-off against other horizontal above-ground portions of the building envelope, per Sentence 3.3.1.1.(4).","Horizontal above-ground portions of the building envelope are only permitted to be traded-off against other horizontal above-ground portions of the building envelope, per Sentence 3.3.1.1.(4)."]
["4c","The overall thermal transmittance of the building envelope assemblies with embedded radiant heating or cooling is not increased to more than the overall thermal transmittance permitted by Sentence 3.2.2.2.(4), as required by Sentence 3.3.1.1.(5).","The overall thermal transmittance of the building envelope assemblies with embedded radiant heating or cooling is not increased to more than the overall thermal transmittance permitted by Sentence 3.2.2.2.(4), as required by Sentence 3.3.1.1.(5)."]
["4d","If construction techniques are used that result in increased performance compared to what would be required by Articles 3.2.1.1. and 3.2.2.1. and Subsection 3.2.4., that difference in performance is not used in trade-off calculations, as specified in Sentence 3.3.1.1.(6).","If construction techniques are used that result in increased performance compared to what would be required by Articles 3.2.1.1. and 3.2.2.1. and Subsection 3.2.4., that difference in performance is not used in trade-off calculations, as specified in Sentence 3.3.1.1.(6)."]
["4e","Building envelope components that are more energy-efficient than what is prescribed in Section 3.2 are included in the trade-off calculation only if the increased performance level can be quantified and is not dependent on occupant interaction.","Building envelope components that are more energy-efficient than what is prescribed in Section 3.2 are included in the trade-off calculation only if the increased performance level can be quantified and is not dependent on occupant interaction."]
[5,{"$f":"CONCATENATE(C21,E21,F21, D21)","v":"Compliance is determined as per the requirements of Article 3.3.1.2.. Please append calculations with this checklist."},"Compliance is determined as per the requirements of Article 3.3.1.2.. Please append calculations with this checklist.",null,null,null,null,{"$f":"IF(AND(B26<=A26, B27<=A27), \"Yes\", \"No\")","v":"Yes"}]
[]
[]
[]
[]
[0,0]
[0,0]
[]
[]
[]
[]
[]
[]
[]
[]
[]
[]
[]
[]
[]
[]
[]
[]
[]
[]
[]
[5]

{"sheet":"Part 4 - Prescriptive","index":5,"n_rows":56,"n_cols":9,"rows_kept":56,"cut":false,"hidden":true,"merged":[[1,8,6,8],[0,0,0,8],[2,1,2,5]]}
["Part 4 - Prescriptive"]
[{"$f":"'Building Information'!A19:B19","v":"Project Name"},{"$f":"'Building Information'!C19","v":"00:00:00"},null,null,null,null,null,null,{"$f":"IF(SUM(G12:G20) = 33,\"NECB 2015 Compliant\", \"\")","v":""}]
[{"$f":"'Building Information'!A18:B18","v":"Date (yyyy-mm-dd)"},{"$f":"'Building Information'!C18","v":"00:00:00"}]
[{"$f":"'Building Information'!A21:B21","v":"Contact Person"},{"$f":"'Building Information'!C21","v":0}]
["Lighting Contact",{"$f":"'Compliance Paths'!F12","v":" "}]
["Climate Zone",{"$f":"'Building Information'!C38","v":""}]
[null,{"$f":"IF('Building Information'!C28= \"No\", \"Fully Heated Building\", \"Semi-heated Building\")","v":"Fully Heated Building"}]
["Building Permit Number",{"$f":"'Building Information'!I16","v":" (for internal use only)"}]
[]
["#","Question",null,null,"Requirements","Units",null,"Compliant?","Additional Comments"]
[null,"Section 4.1 - General"]
[1,{"$f":"CONCATENATE(C12,E12,F12, D12)","v":"This Section is complete for all applicable lighting components and systems in the building, as specified in Article 4.1.1.2."},"This Section is complete for all applicable lighting components and systems in the building, as specified in Article 4.1.1.2."]
[null,"Section 4.2 - Prescriptive Path"]
[2,{"$f":"CONCATENATE(C14,E14,F14, D14)","v":"Power requirements for lighting units for internally illuminated exit signs conform to CAN/CSA-C860, per Sentence 4.2.1.1.(1)."},"Power requirements for lighting units for internally illuminated exit signs conform to CAN/CSA-C860, per Sentence 4.2.1.1.(1)."]
["3a","Fluorescent lamp ballasts conform to CSA C654, per Sentence 4.2.1.2.(1).","Fluorescent lamp ballasts conform to CSA C654, per Sentence 4.2.1.2.(1)."]
["3b","Electronic fluorescent lamp ballasts not within the scope of CSA 654 conform to ANSI_ANSLG C82.11, per Sentence 4.2.1.2.(2).","Electronic fluorescent lamp ballasts not within the scope of CSA 654 conform to ANSI_ANSLG C82.11, per Sentence 4.2.1.2.(2).",null,null,null,{"$f":"IF(OR(H16=\"N/A\",H16=\"Yes\")=TRUE, 1, 0)","v":0}]
["4a","The installed interior lighting power does not exceed the value of interior lighting power allowance determined using either the building area method or the space-by-space method, as per Sentence 4.2.1.3.(1).","The installed interior lighting power does not exceed the value of interior lighting power allowance determined using either the building area method or the space-by-space method, as per Sentence 4.2.1.3.(1)."]
["4b","Only the building area method was used to determine the Interior Lighting Power Allowance in accordance with Article 4.2.1.3.","Only the building area method was used to determine the Interior Lighting Power Allowance in accordance with Article 4.2.1.3."]
["4c","Only the space-by-space method was used to determine the Interior Lighting Power Allowance in accordance with Article 4.2.1.3.","Only the space-by-space method was used to determine the Interior Lighting Power Allowance in accordance with Article 4.2.1.3."]
[5,"The calculation of installed interior lighting power for applicable lighting includes all power used by the luminaires, including lamps, ballasts, transformers, and control devices for all interior lighting and determined in accordance with Article 4.2.1.4.","The calculation of installed interior lighting power for applicable lighting includes all power used by the luminaires, including lamps, ballasts, transformers, and control devices for all interior lighting and determined in accordance with Article 4.2.1.4."]
["6a","If using the building area method, the interior lighting power allowance was determined for the entire building and using a building type or an equivalent building identified in Table 4.2.1.5. based on the primary use for which the building is intended, in accordance with Article 4.2.1.5.","If using the building area method, the interior lighting power allowance was determined for the entire building and using a building type or an equivalent building identified in Table 4.2.1.5. based on the primary use for which the building is intended, in accordance with Article 4.2.1.5.",null,null,null,null,{"$f":"IF($H$18=\"N/A\",\"N/A\", \"\")","v":""}]
["6b",{"$f":"CONCATENATE(C22,E22,F22, D22)","v":"If using the building area method the interior lighting power allowance is calculated by multiplying the lighting power density by the gross lighted area, as required by Sentence 4.2.1.5.(5). Please complete the Part 4 - Details tab."},"If using the building area method the interior lighting power allowance is calculated by multiplying the lighting power density by the gross lighted area, as required by Sentence 4.2.1.5.(5). Please complete the Part 4 - Details tab.",null,null,null,null,{"$f":"IF($H$18=\"N/A\",\"N/A\", \"\")","v":""}]
[7,"If using the space-by-space method, the interior lighting power allowance is determined according to Sentence 4.2.1.6.(1). Please complete the Part 4 - Details tab.","If using the space-by-space method, the interior lighting power allowance is determined according to Sentence 4.2.1.6.(1). Please complete the Part 4 - Details tab.",null,null,null,null,{"$f":"IF($H$19=\"N/A\",\"N/A\", \"\")","v":""}]
["8a","Interior lighting controls are installed in accordance with Article 4.2.2.1. for each space type, as per Sentence 4.2.2.1.(1).","Interior lighting controls are installed in accordance with Article 4.2.2.1. for each space type, as per Sentence 4.2.2.1.(1)."]
["8b","If the space-by-space method is used, the same space types are used to determine the applicable lighting control requirements from Table 4.2.1.6., as per Sentence 4.2.2.1.(1).","If the space-by-space method is used, the same space types are used to determine the applicable lighting control requirements from Table 4.2.1.6., as per Sentence 4.2.2.1.(1).",null,null,null,null,{"$f":"IF($H$19=\"N/A\",\"N/A\", \"\")","v":""}]
["8c","Except for safety or security reasons where Sentence 4.2.2.1.(5) applies, at least one manual lighting control device is installed in a readily accessible location in each area less than or equal to 250 m2, where the area of the space is less than or equal to 1000 m2, and in each area less than or equal to 1000 m2, where the area of the space is greater than 1000 m2, as per Sentences 4.2.2.1.(3) and (4).","Except for safety or security reasons where Sentence 4.2.2.1.(5) applies, at least one manual lighting control device is installed in a readily accessible location in each area less than or equal to 250 m2, where the area of the space is less than or equal to 1000 m2, and in each area less than or equal to 1000 m2, where the area of the space is greater than 1000 m2, as per Sentences 4.2.2.1.(3) and (4)."]
["8d","Except where operation of the general lighting would endanger the safety or security of the building occupants, none of the lighting in spaces requiring controls that are restricted to \"Manual ON\" in accordance with Table 4.2.1.6. turns on automatically, as per the requirements of Sentence 4.2.2.1.(6).","Except where operation of the general lighting would endanger the safety or security of the building occupants, none of the lighting in spaces requiring controls that are restricted to \"Manual ON\" in accordance with Table 4.2.1.6. turns on automatically, as per the requirements of Sentence 4.2.2.1.(6)."]
["8e","Up to 50% of the lighting power for the general lighting only is permitted to turn on automatically in spaces requiring controls that are restricted to \"Partial Automatic ON\", as per Sentence 4.2.2.1.(8).","Up to 50% of the lighting power for the general lighting only is permitted to turn on automatically in spaces requiring controls that are restricted to \"Partial Automatic ON\", as per Sentence 4.2.2.1.(8)."]
["8f","The general lighting in spaces requiring “Bi-Level” lighting control have controls that allow at least one intermediate level of lighting per Sentence 4.2.2.1.(9).”","The general lighting in spaces requiring “Bi-Level” lighting control have controls that allow at least one intermediate level of lighting per Sentence 4.2.2.1.(9).”"]
["8g","Except as provided in Sentence 4.2.2.1.(12), the general lighting in primary and secondary sidelighted areas, as applicable, in spaces requiring \"Automatic Daylight Responsive Controls for Toplighting\", meet the requirements of Sentences 4.2.2.1.(10), and (11).","Except as provided in Sentence 4.2.2.1.(12), the general lighting in primary and secondary sidelighted areas, as applicable, in spaces requiring \"Automatic Daylight Responsive Controls for Toplighting\", meet the requirements of Sentences 4.2.2.1.(10), and (11)."]
["8h","Except as provided in Sentence 4.2.2.1.(15), the general lighting in daylighted areas under skylights and roof monitors in spaces requiring \"Automatic Daylight Responsive Controls for Toplighting\", meet the requirements of Sentences 4.2.2.1.(13), and (14).","Except as provided in Sentence 4.2.2.1.(15), the general lighting in daylighted areas under skylights and roof monitors in spaces requiring \"Automatic Daylight Responsive Controls for Toplighting\", meet the requirements of Sentences 4.2.2.1.(13), and (14)."]
["8i","Except for the applications listed in Sentence 4.2.2.1.(17), the power for general lighting in spaces requiring controls that are \"Automatic Partial OFF\" in accordance with Table 4.2.1.6. automatically reduces by 50% or more within 20 minutes of the space being unoccupied, as per Sentence 4.2.2.1.(16).","Except for the applications listed in Sentence 4.2.2.1.(17), the power for general lighting in spaces requiring controls that are \"Automatic Partial OFF\" in accordance with Table 4.2.1.6. automatically reduces by 50% or more within 20 minutes of the space being unoccupied, as per Sentence 4.2.2.1.(16)."]
["8j","Except for the applications listed in Sentence 4.2.2.1.(19), the lighting in spaces requiring controls that are \"Automatic Full OFF\" are controlled by automatic control devices that shut off the lighting within 20 min of the space being unoccupied, where each automatic control device controls an area not greater than 50 m2, as per Sentence 4.2.2.1.(18).","Except for the applications listed in Sentence 4.2.2.1.(19), the lighting in spaces requiring controls that are \"Automatic Full OFF\" are controlled by automatic control devices that shut off the lighting within 20 min of the space being unoccupied, where each automatic control device controls an area not greater than 50 m2, as per Sentence 4.2.2.1.(18)."]
["8k","Except for the applications listed in Sentence 4.2.2.1.(23), the lighting in spaces requiring controls that are \"Scheduled Shut-off\" shut off automatically during periods when the spaces are scheduled to be unocuppied, as per Sentence 4.2.2.1.(20).","Except for the applications listed in Sentence 4.2.2.1.(23), the lighting in spaces requiring controls that are \"Scheduled Shut-off\" shut off automatically during periods when the spaces are scheduled to be unocuppied, as per Sentence 4.2.2.1.(20)."]
["8l","Where “Scheduled Shut-off” control devices are required, these control the lighting for an area of not more than 2500 m2 on not more than one floor per Sentence 4.2.2.1.(21).","Where “Scheduled Shut-off” control devices are required, these control the lighting for an area of not more than 2500 m2 on not more than one floor per Sentence 4.2.2.1.(21)."]
["8m","Where “Scheduled Shut-off” control devices are required, any manual control devices installed to override these conform to Sentence 4.2.2.1.(22).","Where “Scheduled Shut-off” control devices are required, any manual control devices installed to override these conform to Sentence 4.2.2.1.(22)."]
["9a","Applicable lighting in a storage garage is divided into zones no larger than 360 m2 and is controlled by a device that automatically reduces the lighting power by at least 30% when no activity is detected for 20 minutes, as per Sentences 4.2.2.2.(1) and (2).","Applicable lighting in a storage garage is divided into zones no larger than 360 m2 and is controlled by a device that automatically reduces the lighting power by at least 30% when no activity is detected for 20 minutes, as per Sentences 4.2.2.2.(1) and (2)."]
["9b","Lighting for covered vehicle entrances and exits from storage garages are separately controlled by a device that automatically reduces the lighting by at least 50% from sunset to sunrise, per Sentence 4.2.2.2.(3).","Lighting for covered vehicle entrances and exits from storage garages are separately controlled by a device that automatically reduces the lighting by at least 50% from sunset to sunrise, per Sentence 4.2.2.2.(3)."]
["9c","Applicable luminaires in storage garage spaces meet the requirements of Sentence 4.2.2.2.(4).","Applicable luminaires in storage garage spaces meet the requirements of Sentence 4.2.2.2.(4)."]
["10a","The total primary sidelighted area is the combined primary sidelighted areas without double-counted overlapping areas, per Sentence 4.2.2.3.(1).","The total primary sidelighted area is the combined primary sidelighted areas without double-counted overlapping areas, per Sentence 4.2.2.3.(1)."]
["10b","Each primary sidelighted area is calculated as the product of the width and depth of the primary sidelighted area determined in accordance with Sentences 4.2.2.3.(3) and (4), per Sentence 4.2.2.3.(1). ","Each primary sidelighted area is calculated as the product of the width and depth of the primary sidelighted area determined in accordance with Sentences 4.2.2.3.(3) and (4), per Sentence 4.2.2.3.(1). "]
["10c","The total secondary sidelighted area is the combined secondary sidelighted areas without double-counted overlapping areas, per Sentence 4.2.2.3.(5).","The total secondary sidelighted area is the combined secondary sidelighted areas without double-counted overlapping areas, per Sentence 4.2.2.3.(5)."]
["10d","Each secondary sidelighted area, which is the floor area directly adjacent to a primary sidelighted area, is calculated as the product of the width of the secondary sidelighted area, and the depth of the secondary sidelighted area, per Sentence 4.2.2.3.(6), (7), and (8).","Each secondary sidelighted area, which is the floor area directly adjacent to a primary sidelighted area, is calculated as the product of the width of the secondary sidelighted area, and the depth of the secondary sidelighted area, per Sentence 4.2.2.3.(6), (7), and (8)."]
["11a","The daylight area under rooftop monitors is the combined daylighted area under each roof monitor without double-counting overlapping areas, per Sentence 4.2.2.4.(1).","The daylight area under rooftop monitors is the combined daylighted area under each roof monitor without double-counting overlapping areas, per Sentence 4.2.2.4.(1)."]
["11b","The daylighted area under each roof monitor is calculated in accordance with Sentence 4.2.2.4.(2).","The daylighted area under each roof monitor is calculated in accordance with Sentence 4.2.2.4.(2)."]
["11c","The daylighted area under skylights is the combined daylighted area under each skylight without double-counting overlapping areas, per Sentence 4.2.2.5.(1).","The daylighted area under skylights is the combined daylighted area under each skylight without double-counting overlapping areas, per Sentence 4.2.2.5.(1)."]
["11d","The daylighted area under each roof skylight is calculated in accordance with Sentence 4.2.2.5.(2).","The daylighted area under each roof skylight is calculated in accordance with Sentence 4.2.2.5.(2)."]
["12a","Display or accent lighting, lighting in display and merchandising cases, lighting for non-visual applications such as plant growth and food warming, and lighting equipment for sale or demonstrations in lighting education is controlled separately from the general lighting, per Sentence 4.2.2.6.(1).","Display or accent lighting, lighting in display and merchandising cases, lighting for non-visual applications such as plant growth and food warming, and lighting equipment for sale or demonstrations in lighting education is controlled separately from the general lighting, per Sentence 4.2.2.6.(1)."]
["12b","Lighting in hotel suites and guest rooms in commercial temporary lodgings is controlled as per Sentences 4.2.2.6.(2), (3), and (4).","Lighting in hotel suites and guest rooms in commercial temporary lodgings is controlled as per Sentences 4.2.2.6.(2), (3), and (4)."]
["13a","Exterior lighting allowances are based on the lighting zone in which the building is located, as determined from Table 4.2.3.1.-A., as required by 4.2.3.1.(1).","Exterior lighting allowances are based on the lighting zone in which the building is located, as determined from Table 4.2.3.1.-A., as required by 4.2.3.1.(1)."]
["13b","The basic site allowance to be applied in the calculation of maximum connected exterior lighting power in Sentences 4.2.3.1.(3) and 4.2.3.1.(4) does not exceed the limits specified in Table 4.2.3.1.-B. and Table 4.2.3.1.-C., as required by 4.2.3.1.(2). ","The basic site allowance to be applied in the calculation of maximum connected exterior lighting power in Sentences 4.2.3.1.(3) and 4.2.3.1.(4) does not exceed the limits specified in Table 4.2.3.1.-B. and Table 4.2.3.1.-C., as required by 4.2.3.1.(2). "]
["13c",{"$f":"CONCATENATE(C52,E52,F52, D52)","v":"Specialty lighting listed in Sentence 4.2.3.1.(5) need not be accounted into the basic site allowance provided it is equipped with independent controls that meet the requirements of Subsection 4.2.4."},"Specialty lighting listed in Sentence 4.2.3.1.(5) need not be accounted into the basic site allowance provided it is equipped with independent controls that meet the requirements of Subsection 4.2.4."]
["14a","Applicable exterior lighting is controlled either by astronomical time controls, photosensors, a combination of photosensors and timer shut-off switch, or other types of controls that perform the same function as these, as required by Sentence 4.2.4.1.(1).","Applicable exterior lighting is controlled either by astronomical time controls, photosensors, a combination of photosensors and timer shut-off switch, or other types of controls that perform the same function as these, as required by Sentence 4.2.4.1.(1)."]
["14b","Applicable exterior lighting designated for dusk-to-dawn operation is controlled by astronomical time controls or photosensors, as required by Sentence 4.2.4.1.(2).","Applicable exterior lighting designated for dusk-to-dawn operation is controlled by astronomical time controls or photosensors, as required by Sentence 4.2.4.1.(2)."]
["14c","Except for building façade and landscape lighting which has the capability to shut off automatically, all exterior lighting including advertising signage and parking lot lighting, is equipped with a device that has the capability to automatically reduce the total connected lighting power by at least 30%, per Sentences 4.2.4.1.(4) and (5).","Except for building façade and landscape lighting which has the capability to shut off automatically, all exterior lighting including advertising signage and parking lot lighting, is equipped with a device that has the capability to automatically reduce the total connected lighting power by at least 30%, per Sentences 4.2.4.1.(4) and (5)."]
["14d",{"$f":"CONCATENATE(C56,E56,F56, D56)","v":"All lighting schedule controllers are equipped with backup provisions to retain programming and the time setting for at least 10 hours during a power outage, per Sentence 4.2.4.1.(6)."},"All lighting schedule controllers are equipped with backup provisions to retain programming and the time setting for at least 10 hours during a power outage, per Sentence 4.2.4.1.(6)."]

{"sheet":"Part 4 - Details","index":6,"n_rows":8,"n_cols":12,"rows_kept":8,"cut":false,"hidden":true,"merged":[[0,0,0,6],[1,0,1,4]]}
["Part 4 - Details"]
["Please complete the following sheet either for the building or for each space in the building.",null,null,null,null,"Atrium Height (m)",true]
[null,null,"Select compliance option in Cell D3","Space-by-Space Method",{"$f":"OR(COUNTIF(C5:C1048576, \"Atrium < 6 m in height\"), COUNTIF(C5:C1048576, \"Atrium between 6 m and 12 m in height\"), COUNTIF(C5:C1048576, \"Atrium > 12 m in height\"))","v":false}]
["Space #",{"$f":"IF('Part 4 - Details'!$D$3='Validation Reference'!$I$7,\"\",\"Space Description\")","v":"Space Description"},{"$f":"IF('Part 4 - Details'!$D$3='Validation Reference'!$I$7,\"Building Type\",\"Space Type\")","v":"Space Type"},{"$f":"IF('Part 4 - Details'!$D$3='Validation Reference'!$I$7,\"LPD, per Table 4.2.1.5.\",\"LPD, per Table 4.2.1.6\")","v":"LPD, per Table 4.2.1.6"},"Design LPD","LPD Compliant","List Control Type(s) Used, per Table 4.2.1.6.","Atrium Height (m)",null,null,"S-b-S","B-A-M"]
[{"$f":"ROW()-4","v":1},null,null,{"$f":"IF(C5<>\"\",IF(J5=TRUE, (VLOOKUP(C5,'Code Tables'!$I$59:$J$163,2,FALSE)*H5)+VLOOKUP(C5,'Code Tables'!$I$59:$K$163,3,FALSE),VLOOKUP(C5,'Code Tables'!$I$59:$J$163,2,FALSE)),\"\")","v":""},null,{"$f":"IF(AND(C5<>\"-\", E5<>\"\"),IF(D5>=E5,\"Yes\",\"No\"),\"\")","v":""},null,null,null,{"$f":"OR(COUNTIF(C5, \"Atrium < 6 m in height\"), COUNTIF(C5, \"Atrium between 6 m and 12 m in height\"), COUNTIF(C5, \"Atrium > 12 m in height\"))","v":false}]
[2,null,null,{"$f":"IF(C6<>\"\",IF(J6=TRUE, (VLOOKUP(C6,'Code Tables'!$I$59:$J$163,2,FALSE)*H6)+VLOOKUP(C6,'Code Tables'!$I$59:$K$163,3,FALSE),VLOOKUP(C6,'Code Tables'!$I$59:$J$163,2,FALSE)),\"\")","v":""},null,{"$f":"IF(AND(C6<>\"-\", E6<>\"\"),IF(D6>=E6,\"Yes\",\"No\"),\"\")","v":""},null,null,null,false]
[3,null,null,{"$f":"IF(C7<>\"\",IF(J7=TRUE, (VLOOKUP(C7,'Code Tables'!$I$59:$J$163,2,FALSE)*H7)+VLOOKUP(C7,'Code Tables'!$I$59:$K$163,3,FALSE),VLOOKUP(C7,'Code Tables'!$I$59:$J$163,2,FALSE)),\"\")","v":""},null,{"$f":"IF(AND(C7<>\"-\", E7<>\"\"),IF(D7>=E7,\"Yes\",\"No\"),\"\")","v":""},null,null,null,{"$f":"OR(COUNTIF(C7, \"Atrium < 6 m in height\"), COUNTIF(C7, \"Atrium between 6 m and 12 m in height\"), COUNTIF(C7, \"Atrium > 12 m in height\"))","v":false}]
[4,null,null,{"$f":"IF(C8<>\"\",IF(J8=TRUE, (VLOOKUP(C8,'Code Tables'!$I$59:$J$163,2,FALSE)*H8)+VLOOKUP(C8,'Code Tables'!$I$59:$K$163,3,FALSE),VLOOKUP(C8,'Code Tables'!$I$59:$J$163,2,FALSE)),\"\")","v":""},null,{"$f":"IF(AND(C8<>\"-\", E8<>\"\"),IF(D8>=E8,\"Yes\",\"No\"),\"\")","v":""},null,null,null,{"$f":"OR(COUNTIF(C8, \"Atrium < 6 m in height\"), COUNTIF(C8, \"Atrium between 6 m and 12 m in height\"), COUNTIF(C8, \"Atrium > 12 m in height\"))","v":false}]

{"sheet":"Part 4 - Trade-off","index":7,"n_rows":25,"n_cols":9,"rows_kept":25,"cut":false,"hidden":true,"merged":[[1,8,6,8],[0,0,0,8],[2,1,2,5]]}
["Part 4 - Trade-off"]
[{"$f":"'Building Information'!A19:B19","v":"Project Name"},{"$f":"'Building Information'!C19","v":"00:00:00"},null,null,null,null,null,null,{"$f":"IF(SUM(G12:G24) = 33,\"NECB 2015 Compliant\", \"\")","v":""}]
[{"$f":"'Building Information'!A18:B18","v":"Date (yyyy-mm-dd)"},{"$f":"'Building Information'!C18","v":"00:00:00"}]
[{"$f":"'Building Information'!A21:B21","v":"Contact Person"},{"$f":"'Building Information'!C21","v":0}]
["Lighting Contact",{"$f":"'Compliance Paths'!F12","v":" "}]
["Climate Zone",{"$f":"'Building Information'!C38","v":""}]
[null,{"$f":"IF('Building Information'!C28= \"No\", \"Fully Heated Building\", \"Semi-heated Building\")","v":"Fully Heated Building"}]
["Building Permit Number",{"$f":"'Building Information'!I16","v":" (for internal use only)"}]
[]
["#","Question",null,null,"Requirements","Units",null,"Compliant?","Additional Comments"]
[null,"Part 4 - General"]
[1,{"$f":"CONCATENATE(C12,E12,F12, D12)","v":"This Section is complete for all applicable lighting components and systems in the building, as specified in Article 4.1.1.2."},"This Section is complete for all applicable lighting components and systems in the building, as specified in Article 4.1.1.2.",null,null,null,{"$f":"IF(OR(H12=\"N/A\",H12=\"Yes\")=TRUE, 1, 0)","v":0}]
[2,{"$f":"CONCATENATE(C13,E13,F13, D13)","v":"Power requirements for lighting units for internally illuminated exit signs conform to CAN/CSA-C860, per Sentence 4.2.1.1.(1)."},"Power requirements for lighting units for internally illuminated exit signs conform to CAN/CSA-C860, per Sentence 4.2.1.1.(1).",null,null,null,0]
["3a","Fluorescent lamp ballasts conform to CSA C654, per Sentence 4.2.1.2.(1).","Fluorescent lamp ballasts conform to CSA C654, per Sentence 4.2.1.2.(1)."]
["3b","Electronic fluorescent lamp ballasts not within the scope of CSA 654 conform to ANSI_ANSLG C82.11, per Sentence 4.2.1.2.(2).","Electronic fluorescent lamp ballasts not within the scope of CSA 654 conform to ANSI_ANSLG C82.11, per Sentence 4.2.1.2.(2)."]
["4a","Exterior lighting allowances are based on the lighting zone in which the building is located, as determined from Table 4.2.3.1.-A., as required by Sentence 4.2.3.1.(1).","Exterior lighting allowances are based on the lighting zone in which the building is located, as determined from Table 4.2.3.1.-A., as required by Sentence 4.2.3.1.(1)."]
["4b","The basic site allowance to be applied in the calculation of maximum connected exterior lighting power in Sentences 4.2.3.1.(3) and 4.2.3.1.(4) does not exceed the limits specified in Table 4.2.3.1.-B. and Table 4.2.3.1.-C., as required by Sentence 4.2.3.1.(2). ","The basic site allowance to be applied in the calculation of maximum connected exterior lighting power in Sentences 4.2.3.1.(3) and 4.2.3.1.(4) does not exceed the limits specified in Table 4.2.3.1.-B. and Table 4.2.3.1.-C., as required by Sentence 4.2.3.1.(2). "]
["4c","Specialty lighting listed in Sentence 4.2.3.1.(5) need not be accounted into the basic site allowance provided it is equipped with independent controls that meet the requirements of Subsection 4.2.4.","Specialty lighting listed in Sentence 4.2.3.1.(5) need not be accounted into the basic site allowance provided it is equipped with independent controls that meet the requirements of Subsection 4.2.4."]
["5a","Applicable exterior lighting is controlled either by astronomical time controls, photosensors, a combination of photosensors and timer shut-off switch, or other types of controls that perform the same function as these, as required by Sentence 4.2.4.1.(1).","Applicable exterior lighting is controlled either by astronomical time controls, photosensors, a combination of photosensors and timer shut-off switch, or other types of controls that perform the same function as these, as required by Sentence 4.2.4.1.(1)."]
["5b","Applicable exterior lighting designated for dusk-to-dawn operation is controlled by astronomical time controls, or photosensors, as required by Sentence 4.2.4.1.(2).","Applicable exterior lighting designated for dusk-to-dawn operation is controlled by astronomical time controls, or photosensors, as required by Sentence 4.2.4.1.(2)."]
["5c","Except for building façade and landscape lighting which has the capability to shut off automatically, all exterior lighting including advertising signage and parking lot lighting, is equipped with a device that has the capability to automatically reduce the total connected lighting power by at least 30%, as per Sentences 4.2.4.1.(4) and (5).","Except for building façade and landscape lighting which has the capability to shut off automatically, all exterior lighting including advertising signage and parking lot lighting, is equipped with a device that has the capability to automatically reduce the total connected lighting power by at least 30%, as per Sentences 4.2.4.1.(4) and (5)."]
["5d","All lighting schedule controllers are equipped with backup provisions to retain programming and the time setting for at least 10 hours during a power outage, per Sentence 4.2.4.1.(6).","All lighting schedule controllers are equipped with backup provisions to retain programming and the time setting for at least 10 hours during a power outage, per Sentence 4.2.4.1.(6)."]
[null,"Part 4 - Trade-off"]
[6,{"$f":"CONCATENATE(C24,E24,F24, D24)","v":"The installed interior lighting energy (IILE) in the proposed building calculated in accordance with Subsection 4.3.2., is less than or equal to the interior lighting energy allowance (ILEA) calculated in accordance with Subsection 4.3.3. If subsections 4.3.2. and 4.3.3. are used to demonstrate compliance, please append calculations or Part 4 Trade-off Path Calculation Tool output to this checklist. Enter ILEA and IILE below."},"The installed interior lighting energy (IILE) in the proposed building calculated in accordance with Subsection 4.3.2., is less than or equal to the interior lighting energy allowance (ILEA) calculated in accordance with Subsection 4.3.3. If subsections 4.3.2. and 4.3.3. are used to demonstrate compliance, please append calculations or Part 4 Trade-off Path Calculation Tool output to this checklist. Enter ILEA and IILE below.",null,null,null,null,{"$f":"IF(AND(B26<>0, A26<>0), IF(B26>=A26,\"Yes\",\"No\"), \"\")","v":""}]
[7,"The installed interior lighting energy (IILE) in the proposed building calculated in accordance with CSA C873.4 - Part 4, is less than or equal to the interior lighting energy allowance (ILEA) calculated in accordance with CSA C873.4 - Part 4 and NECB Sentences 4.3.1.3.(4) and (5). If CSA C873.4 -Part 4 - is used to demonstrate compliance, append calculations to this checklist. ","The installed interior lighting energy (IILE) in the proposed building calculated in accordance with CSA C873.4 - Part 4, is less than or equal to the interior lighting energy allowance (ILEA) calculated in accordance with CSA C873.4 - Part 4 and NECB Sentences 4.3.1.3.(4) and (5). If CSA C873.4 -Part 4 - is used to demonstrate compliance, append calculations to this checklist. ",null,null,null,null,{"$f":"IF(AND(B27<>0, A27<>0), IF(B27>=A27,\"Yes\",\"No\"), \"\")","v":""}]

{"sheet":"Part 5 - Prescriptive","index":8,"n_rows":106,"n_cols":9,"rows_kept":106,"cut":false,"hidden":true,"merged":[[1,8,6,8],[0,0,0,8],[2,1,2,5]]}
["Part 5 - Prescriptive"]
[{"$f":"'Building Information'!A19:B19","v":"Project Name"},{"$f":"'Building Information'!C19","v":"00:00:00"},null,null,null,null,null,null,{"$f":"IF(SUM(G12:G20) = 33,\"NECB 2015 Compliant\", \"\")","v":""}]
[{"$f":"'Building Information'!A18:B18","v":"Date (yyyy-mm-dd)"},{"$f":"'Building Information'!C18","v":"00:00:00"}]
[{"$f":"'Building Information'!A21:B21","v":"Contact Person"},{"$f":"'Building Information'!C21","v":0}]
["HVAC Contact",{"$f":"'Compliance Paths'!F17","v":" "}]
["Climate Zone",{"$f":"'Building Information'!C38","v":""}]
[null,{"$f":"IF('Building Information'!C28= \"No\", \"Fully Heated Building\", \"Semi-heated Building\")","v":"Fully Heated Building"}]
["Building Permit Number",{"$f":"'Building Information'!I16","v":" (for internal use only)"}]
[]
["#","Question",null,null,"Requirements","Units",null,"Compliant?","Additional Comments"]
[null,"Section 5.1 - General"]
[1,{"$f":"CONCATENATE(C12,E12,F12,D12)","v":"This Section is complete for all applicable heating, ventilating and air conditioning (HVAC) systems and equipment in the building, per Article 5.1.1.2."},"This Section is complete for all applicable heating, ventilating and air conditioning (HVAC) systems and equipment in the building, per Article 5.1.1.2."]
[2,{"$f":"CONCATENATE(C13,E13,F13,D13)","v":"This Section is complete for all back-up HVAC systems in the building, per Sentence 5.1.1.3.(2)."},"This Section is complete for all back-up HVAC systems in the building, per Sentence 5.1.1.3.(2)."]
[null,"Section 5.2 - Prescriptive Path"]
[3,{"$f":"CONCATENATE(C15,E15,F15,D15)","v":"All HVAC systems are sized in accordance with good engineering practice as required by Sentence 5.2.1.1.(1)."},"All HVAC systems are sized in accordance with good engineering practice as required by Sentence 5.2.1.1.(1).",null,null,null,{"$f":"IF(OR(H15=\"N/A\",H15=\"Yes\")=TRUE, 1, 0)","v":0}]
[4,"Ducts are designed and installed in accordance with the NBC, according to the requirements of Sentence 5.2.2.1.(1).","Ducts are designed and installed in accordance with the NBC, according to the requirements of Sentence 5.2.2.1.(1)."]
[5,"All air distribution systems are designed such that they can be balanced, as required by Sentence 5.2.2.2.(1).","All air distribution systems are designed such that they can be balanced, as required by Sentence 5.2.2.2.(1).",null,null,null,{"$f":"IF(OR(H17=\"N/A\",H17=\"Yes\")=TRUE, 1, 0)","v":0}]
["6a","All applicable air-handling ducts and plenums forming part of an HVAC system are constructed, installed and sealed in accordance with Sentence 5.2.2.3.(1).","All applicable air-handling ducts and plenums forming part of an HVAC system are constructed, installed and sealed in accordance with Sentence 5.2.2.3.(1)."]
["6b","Air-handling ducts and plenums that do not conform to Sentence 5.2.2.3.(1), meet the requirements of Article 5.2.2.4. If the ducts meet the requirements of Article 5.2.2.4, select N/A for 6a & 6c.","Air-handling ducts and plenums that do not conform to Sentence 5.2.2.3.(1), meet the requirements of Article 5.2.2.4. If the ducts meet the requirements of Article 5.2.2.4, select N/A for 6a & 6c."]
["6c","Sealing tape is not used as the primary sealant for air-handling ducts and plenums, per Sentence 5.2.2.3.(5).","Sealing tape is not used as the primary sealant for air-handling ducts and plenums, per Sentence 5.2.2.3.(5)."]
["7a","Where ducts are not constructed, installed and sealed in accordance with Sentence 5.2.2.3.(1), they meet the requirements of Sentence 5.2.2.4.(1). If the ducts meet the requirements of Sentence 5.2.2.3.(1), select N/A for 7a and 7b.","Where ducts are not constructed, installed and sealed in accordance with Sentence 5.2.2.3.(1), they meet the requirements of Sentence 5.2.2.4.(1). If the ducts meet the requirements of Sentence 5.2.2.3.(1), select N/A for 7a and 7b."]
["7b","For ducts tested in accordance with Sentence 5.2.2.4.(1), the maximum permitted leakage is calculated according to the equation in Sentence 5.2.2.4.(2).","For ducts tested in accordance with Sentence 5.2.2.4.(1), the maximum permitted leakage is calculated according to the equation in Sentence 5.2.2.4.(2)."]
["8a","All applicable air-handling ducts, plenums and run-outs are insulated according to Sentences 5.2.2.5.(1), (2), (7) and (8).","All applicable air-handling ducts, plenums and run-outs are insulated according to Sentences 5.2.2.5.(1), (2), (7) and (8)."]
["8b","All applicable air-handling ducts and plenums that are located outside the building envelope are insulated to the same level as indicated in Subsection 3.2.2., as required by Sentence 5.2.2.5.(5).","All applicable air-handling ducts and plenums that are located outside the building envelope are insulated to the same level as indicated in Subsection 3.2.2., as required by Sentence 5.2.2.5.(5)."]
["8c","Applicable factory-installed plenums and ducts are insulated to a thermal resistance not less than 0.58 m2ºC/W, as specified in Sentence 5.2.2.5.(6).","Applicable factory-installed plenums and ducts are insulated to a thermal resistance not less than 0.58 m2ºC/W, as specified in Sentence 5.2.2.5.(6)."]
["9a","Insulation on cold-air supply ducts is provided with a vapour barrier, where the surface temperature of the duct is below the dew point of the air surrounding the duct, as per Sentence 5.2.2.6.(1).","Insulation on cold-air supply ducts is provided with a vapour barrier, where the surface temperature of the duct is below the dew point of the air surrounding the duct, as per Sentence 5.2.2.6.(1)."]
["9b","Duct insulation is protected from mechanical damage or weather in areas of possible exposure, as required by Sentence 5.2.2.6.(2).","Duct insulation is protected from mechanical damage or weather in areas of possible exposure, as required by Sentence 5.2.2.6.(2)."]
[10,"Each applicable system incorporating mechanical cooling and having an air-handling capacity of more than 1500 L/s or a cooling capacity of more than 20 kW is designed to use outdoor air to reduce mechanical cooling energy through incorporation of either an air economizer system as described in Article 5.2.2.8 or a water economizer system as described in Article 5.2.2.9.","Each applicable system incorporating mechanical cooling and having an air-handling capacity of more than 1500 L/s or a cooling capacity of more than 20 kW is designed to use outdoor air to reduce mechanical cooling energy through incorporation of either an air economizer system as described in Article 5.2.2.8 or a water economizer system as described in Article 5.2.2.9."]
["11a","HVAC systems that use less mechanical cooling energy by direct use of outdoor air (air economizer systems) are capable of mixing return air with up to 100% outdoor air to produce the temperature required, according to Sentence 5.2.2.8.(1).","HVAC systems that use less mechanical cooling energy by direct use of outdoor air (air economizer systems) are capable of mixing return air with up to 100% outdoor air to produce the temperature required, according to Sentence 5.2.2.8.(1)."]
["11b","Systems described in Sentence 5.2.2.8.(1) are designed to automatically revert to the minimum outdoor airflow as prescribed by the NBC, when the return air temperature is less than the outdoor air temperature or the return air enthalpy is less than the outdoor air enthalpy, according to Sentence 5.2.2.8.(2).","Systems described in Sentence 5.2.2.8.(1) are designed to automatically revert to the minimum outdoor airflow as prescribed by the NBC, when the return air temperature is less than the outdoor air temperature or the return air enthalpy is less than the outdoor air enthalpy, according to Sentence 5.2.2.8.(2)."]
["11c","Except as noted below, systems described in Sentence 5.2.2.8.(1) that are designed to mix outdoor air and return air to a temperature as near as possible to that required to condition the space, as indicated in Sentence 5.2.2.8.(3). Direct expansion HVAC systems are permitted to include controls to reduce the quantity of outdoor air at the lowest stage of cooling equipment output as necessary to permit proper operation, are per Sentence 5.2.2.8.(6).","Except as noted below, systems described in Sentence 5.2.2.8.(1) that are designed to mix outdoor air and return air to a temperature as near as possible to that required to condition the space, as indicated in Sentence 5.2.2.8.(3). Direct expansion HVAC systems are permitted to include controls to reduce the quantity of outdoor air at the lowest stage of cooling equipment output as necessary to permit proper operation, are per Sentence 5.2.2.8.(6)."]
["11d","Systems described in Sentence 5.2.2.8.(1) with cooling capacities of 70 kW or more incorporate cooling equipment that can operate with the lowest stage providing no more than 25% of the full capacity of each system, as required by Sentence 5.2.2.8.(4).","Systems described in Sentence 5.2.2.8.(1) with cooling capacities of 70 kW or more incorporate cooling equipment that can operate with the lowest stage providing no more than 25% of the full capacity of each system, as required by Sentence 5.2.2.8.(4)."]
["11e","Systems described in Sentence 5.2.2.8.(1) with cooling capacities greater that 25 kW and less that 70 kW incorporate cooling equipment that can operate at the lowest stage providing no more that 50 % of the full capacity of each system, as required by Sentence 5.2.2.8.(5).","Systems described in Sentence 5.2.2.8.(1) with cooling capacities greater that 25 kW and less that 70 kW incorporate cooling equipment that can operate at the lowest stage providing no more that 50 % of the full capacity of each system, as required by Sentence 5.2.2.8.(5)."]
["12a","HVAC systems that reduce mechanical cooling energy use by using outdoor air to chill cooling distribution fluid by direct expansion, indirect expansion, or both, are capable of cooling supply air to provide 100% of the cooling load when the outdoor air wet-bulb temperature is 7°C or lower, as required by Sentence 5.2.2.9.(1).","HVAC systems that reduce mechanical cooling energy use by using outdoor air to chill cooling distribution fluid by direct expansion, indirect expansion, or both, are capable of cooling supply air to provide 100% of the cooling load when the outdoor air wet-bulb temperature is 7°C or lower, as required by Sentence 5.2.2.9.(1)."]
["12b","HVAC systems that reduce mechanical cooling energy use by using outdoor air to chill cooling distribution fluid by sensible heat transfer are capable of providing 100% of the cooling load when the outdoor air dry-bulb temperature is 10°C or lower, as required by Sentence 5.2.2.9.(2).","HVAC systems that reduce mechanical cooling energy use by using outdoor air to chill cooling distribution fluid by sensible heat transfer are capable of providing 100% of the cooling load when the outdoor air dry-bulb temperature is 10°C or lower, as required by Sentence 5.2.2.9.(2)."]
[13,"For the purpose of the calculations of Subsection 5.2.3., power demand is the sum of the demand of all fans required to operate at design conditions to supply air to the conditioned space, per Sentence 5.2.3.1.(2).","For the purpose of the calculations of Subsection 5.2.3., power demand is the sum of the demand of all fans required to operate at design conditions to supply air to the conditioned space, per Sentence 5.2.3.1.(2)."]
[14,"For fans producing constant air flowrate whenever the system is operating, the maximum power demand required by the motors for the combined supply and return fan system at design conditions does not exceed the requirements of Sentence 5.2.3.2.(1).","For fans producing constant air flowrate whenever the system is operating, the maximum power demand required by the motors for the combined supply and return fan system at design conditions does not exceed the requirements of Sentence 5.2.3.2.(1)."]
["15a","For fans systems through which airflow varies automatically as a function of load (variable-air-volume systems), the power demand required by the motors for the combined supply and return fan system does not exceed the limit set in Sentence 5.2.3.3.(1).","For fans systems through which airflow varies automatically as a function of load (variable-air-volume systems), the power demand required by the motors for the combined supply and return fan system does not exceed the limit set in Sentence 5.2.3.3.(1)."]
["15b","In variable-air-volume systems, any individual supply, relief or return fan incorporates controls and devices for controlling fan power demand as indicated in Sentences 5.2.3.3.(2) and (3).","In variable-air-volume systems, any individual supply, relief or return fan incorporates controls and devices for controlling fan power demand as indicated in Sentences 5.2.3.3.(2) and (3)."]
["16a","Enclosed semi-heated spaces or conditioned spaces where fuel-powered vehicles or mobile fuel-powered equipment or appliances are intermittently used are provided with sensors and demand control ventilation systems capable of limiting the expected air contaminants to acceptable levels with staged ventilation fans or by modulating the outdoor airflow rates, as prescribed by Sentence 5.2.3.4.(1).","Enclosed semi-heated spaces or conditioned spaces where fuel-powered vehicles or mobile fuel-powered equipment or appliances are intermittently used are provided with sensors and demand control ventilation systems capable of limiting the expected air contaminants to acceptable levels with staged ventilation fans or by modulating the outdoor airflow rates, as prescribed by Sentence 5.2.3.4.(1)."]
["16b","Commercial kitchen ventilation systems whose design exhaust fan airflow rate meets or exceeds the values shown in Table 5.2.3.4. for the applicable heating-degree day category are equipped with a demand control ventilation system, including necessary sensors and controls, that is capable of reducing the design exhaust and make-up airflow rates by at least 50% in response to appliance operations, as per Sentence 5.2.3.4.(2).","Commercial kitchen ventilation systems whose design exhaust fan airflow rate meets or exceeds the values shown in Table 5.2.3.4. for the applicable heating-degree day category are equipped with a demand control ventilation system, including necessary sensors and controls, that is capable of reducing the design exhaust and make-up airflow rates by at least 50% in response to appliance operations, as per Sentence 5.2.3.4.(2)."]
["17a","All applicable ducts or openings are equipped with motorized dampers designed to close when the HVAC system is not in operation, as indicated in Article 5.2.4.1.","All applicable ducts or openings are equipped with motorized dampers designed to close when the HVAC system is not in operation, as indicated in Article 5.2.4.1."]
["17b","If the duct or opening is less than 0.08 m2 in cross-sectional area, air inlet dampers are permitted to be manually operated and air outlet dampers are permitted to consist of gravity or spring-operated backflow dampers, as per Sentence 5.2.4.1.(4).","If the duct or opening is less than 0.08 m2 in cross-sectional area, air inlet dampers are permitted to be manually operated and air outlet dampers are permitted to consist of gravity or spring-operated backflow dampers, as per Sentence 5.2.4.1.(4)."]
["18a","Unless the conditions of Sentences 5.2.4.2.(3) and (4) apply, dampers required by Article 5.2.4.1. are located as near as possible to the plane of the building envelope and are designed to close automatically when the HVAC system is not in operation.","Unless the conditions of Sentences 5.2.4.2.(3) and (4) apply, dampers required by Article 5.2.4.1. are located as near as possible to the plane of the building envelope and are designed to close automatically when the HVAC system is not in operation."]
["18b","Air leakage through required motorized dampers in their closed position does not exceed the limit stated in Sentence 5.2.4.2.(2), when tested in accordance with the referenced standards.","Air leakage through required motorized dampers in their closed position does not exceed the limit stated in Sentence 5.2.4.2.(2), when tested in accordance with the referenced standards."]
[19,"HVAC piping is designed and installed in accordance with the NBC, per Sentence 5.2.5.1.(1).","HVAC piping is designed and installed in accordance with the NBC, per Sentence 5.2.5.1.(1)."]
[20,{"$f":"CONCATENATE(C47,E47,F47,D47)","v":"All hydronic systems are designed so that they can be balanced, as required by Sentence 5.2.5.2.(1)."},"All hydronic systems are designed so that they can be balanced, as required by Sentence 5.2.5.2.(1).",null,null,null,0]
["21a","Applicable piping forming part of HVAC systems are thermally insulated in accordance with Table 5.2.5.3., per Sentence 5.2.5.3.(1). Note: where piping insulation has a lower thermal conductivity than the ranges given in Table 5.2.5.3., the insulation thickness may be decreased per Sentence 5.2.5.3.(5).","Applicable piping forming part of HVAC systems are thermally insulated in accordance with Table 5.2.5.3., per Sentence 5.2.5.3.(1). Note: where piping insulation has a lower thermal conductivity than the ranges given in Table 5.2.5.3., the insulation thickness may be decreased per Sentence 5.2.5.3.(5)."]
["21b","Where piping insulation has a thermal conductivity that is greater than the ranges given in Table 5.2.5.3., the insulation thickness given in the Table 5.2.5.3. is increased according to the requirements of Sentence 5.2.5.3.(4).","Where piping insulation has a thermal conductivity that is greater than the ranges given in Table 5.2.5.3., the insulation thickness given in the Table 5.2.5.3. is increased according to the requirements of Sentence 5.2.5.3.(4)."]
["21c","The thermal conductivity of the piping insulation is determined in conformance with ASTM C335/C 335M, per Sentence 5.2.5.3.(6).","The thermal conductivity of the piping insulation is determined in conformance with ASTM C335/C 335M, per Sentence 5.2.5.3.(6)."]
["21d","Required insulation is installed according to good practice, per Sentence 5.2.5.3.(7).","Required insulation is installed according to good practice, per Sentence 5.2.5.3.(7)."]
["22a","Insulation on piping conveying chilled fluid is provided with a vapour barrier protection, in accordance with Sentence 5.2.5.4.(1).","Insulation on piping conveying chilled fluid is provided with a vapour barrier protection, in accordance with Sentence 5.2.5.4.(1)."]
["22b","Piping insulation is protected from mechanical damage or weather in areas of possible exposure, as required by Sentence 5.2.5.4.(2).","Piping insulation is protected from mechanical damage or weather in areas of possible exposure, as required by Sentence 5.2.5.4.(2)."]
[23,"All HVAC pumping systems with a total pump system motor nameplate power of 7.5 kW or greater, according to Article 5.2.6.1., meet the requirements of Subsection 5.2.6.","All HVAC pumping systems with a total pump system motor nameplate power of 7.5 kW or greater, according to Article 5.2.6.1., meet the requirements of Subsection 5.2.6."]
[24,"Applicable HVAC pumping systems that serve control valves are designed for variable fluid flow and capable of reducing system flow to 50% or less of design flow, according to Sentence 5.2.6.2.(1).","Applicable HVAC pumping systems that serve control valves are designed for variable fluid flow and capable of reducing system flow to 50% or less of design flow, according to Sentence 5.2.6.2.(1)."]
[25,"The combined pumping power demand required by applicable pump motors does not exceed the requirements of Table 5.2.6.3., per Sentence 5.2.6.3.(1).","The combined pumping power demand required by applicable pump motors does not exceed the requirements of Table 5.2.6.3., per Sentence 5.2.6.3.(1)."]
[26,"HVAC equipment planned for installation outdoors or in an unconditioned space has been designated by the manufacturer for such installation, per Sentence 5.2.7.1.(1).","HVAC equipment planned for installation outdoors or in an unconditioned space has been designated by the manufacturer for such installation, per Sentence 5.2.7.1.(1)."]
["27a","Each HVAC system intended to provide comfort heating or cooling is provided with at least one automatic space temperature control device, accurate to with 1ºC, as required by Sentence 5.2.8.1.(1).","Each HVAC system intended to provide comfort heating or cooling is provided with at least one automatic space temperature control device, accurate to with 1ºC, as required by Sentence 5.2.8.1.(1).",null,null,null,{"$f":"IF(OR(H58=\"N/A\",H58=\"Yes\")=TRUE, 1, 0)","v":0}]
["27b","Each dwelling unit is controlled by at least one thermostatic control device, per Sentence 5.2.8.1.(2).","Each dwelling unit is controlled by at least one thermostatic control device, per Sentence 5.2.8.1.(2)."]
["28a","Dwelling units are provided with temperature control devices to control the heating of each room as indicated in accordance with Sentence 5.2.8.2.(1). Select \"N/A\" if room-level controls are not appropriate for the HVAC system type.","Dwelling units are provided with temperature control devices to control the heating of each room as indicated in accordance with Sentence 5.2.8.2.(1). Select \"N/A\" if room-level controls are not appropriate for the HVAC system type."]
["28b","Dwelling units with mechanical cooling systems are provided with manually operated or automatic devices to control the cooling of each room in accordance with Sentence 5.2.8.2.(2). Select \"N/A\" if room-level controls are not appropriate for the HVAC system type.","Dwelling units with mechanical cooling systems are provided with manually operated or automatic devices to control the cooling of each room in accordance with Sentence 5.2.8.2.(2). Select \"N/A\" if room-level controls are not appropriate for the HVAC system type.",null,null,null,{"$f":"IF(OR(H61=\"N/A\",H61=\"Yes\")=TRUE, 1, 0)","v":0}]
[29,"The space temperature in each guest room and suite in a commercial temporary lodging is controlled so that it is automatically adjusted to a set-back temperature within 15 minutes of the space being unoccupied, as per Sentence 5.2.8.3.(1).","The space temperature in each guest room and suite in a commercial temporary lodging is controlled so that it is automatically adjusted to a set-back temperature within 15 minutes of the space being unoccupied, as per Sentence 5.2.8.3.(1)."]
[30,"Sensors for applicable thermostats are installed in accordance with the requirements of Sentence 5.2.8.4.(1).","Sensors for applicable thermostats are installed in accordance with the requirements of Sentence 5.2.8.4.(1)."]
[31,"Heat pumps equipped with supplemental heaters are provided with controls to prevent supplemental heater operation when the heating load can be met by the heat pump alone except during defrost cycles, per Sentence 5.2.8.5.(1).","Heat pumps equipped with supplemental heaters are provided with controls to prevent supplemental heater operation when the heating load can be met by the heat pump alone except during defrost cycles, per Sentence 5.2.8.5.(1)."]
["32a","Except for independent perimeter heating and cooling systems meeting Sentence 5.2.8.6.(2), the supply of heating and cooling energy to a zone is controlled by individual thermostatic controls responding to temperature within the zone, per Sentence 5.2.8.6.(1).","Except for independent perimeter heating and cooling systems meeting Sentence 5.2.8.6.(2), the supply of heating and cooling energy to a zone is controlled by individual thermostatic controls responding to temperature within the zone, per Sentence 5.2.8.6.(1)."]
["32b","Independent perimeter heating and cooling system designed to offset building envelope heat losses or gains, or both, have space temperature control devices as described in Sentence 5.2.8.6.(2).","Independent perimeter heating and cooling system designed to offset building envelope heat losses or gains, or both, have space temperature control devices as described in Sentence 5.2.8.6.(2)."]
["32c","In spaces provided with separate thermostatic controls for heating and cooling, means are provided to prevent simultaneous calling for heating and cooling, per Sentence 5.2.8.6.(3).","In spaces provided with separate thermostatic controls for heating and cooling, means are provided to prevent simultaneous calling for heating and cooling, per Sentence 5.2.8.6.(3)."]
["32d","Thermostats installed to control electric resistance heater units conform to CSA C828, per Sentence 5.2.8.6.(4).","Thermostats installed to control electric resistance heater units conform to CSA C828, per Sentence 5.2.8.6.(4)."]
["32e","Vestibules between conditioned spaces and the outdoors have a temperature-control device that limit the maximum temperature to 15°C, per Sentence 5.2.8.6.(5).","Vestibules between conditioned spaces and the outdoors have a temperature-control device that limit the maximum temperature to 15°C, per Sentence 5.2.8.6.(5)."]
[33,"Ice- and snow-melting heaters are provided with automatic controls or readily accessible manual controls that allow them to be shut down when not required, per Sentence 5.2.8.7.(1).","Ice- and snow-melting heaters are provided with automatic controls or readily accessible manual controls that allow them to be shut down when not required, per Sentence 5.2.8.7.(1)."]
[34,"Except for situations permitted in Sentences 5.2.8.8.(2) and (3), supply air handlers are designed and equipped with controls to avoid excessive heating or cooling, as required in Sentence 5.2.8.8.(1).","Except for situations permitted in Sentences 5.2.8.8.(2) and (3), supply air handlers are designed and equipped with controls to avoid excessive heating or cooling, as required in Sentence 5.2.8.8.(1)."]
["35a","Applicable reheat systems are equipped with controls that automatically adjust the temperature of the cool air supply to the highest temperature that will satisfy the temperature-control zone requiring the coolest air, per Sentence 5.2.8.9.(1).","Applicable reheat systems are equipped with controls that automatically adjust the temperature of the cool air supply to the highest temperature that will satisfy the temperature-control zone requiring the coolest air, per Sentence 5.2.8.9.(1)."]
["35b","Applicable recool systems are equipped with controls that will satisfy the temperature-control zone requiring the warmest air, per Sentence 5.2.8.9.(2).","Applicable recool systems are equipped with controls that will satisfy the temperature-control zone requiring the warmest air, per Sentence 5.2.8.9.(2)."]
["35c","HVAC systems that control the temperature of a space by mixing heated supply air and cooled supply air are equipped with controls that meet the requirements of Sentence 5.2.8.9.(3).","HVAC systems that control the temperature of a space by mixing heated supply air and cooled supply air are equipped with controls that meet the requirements of Sentence 5.2.8.9.(3)."]
[36,"HVAC systems equipped with a means of adding or removing moisture to maintain specific humidity levels in a space are provided with automatic humidity control devices, per Sentence 5.2.9.1.(1).","HVAC systems equipped with a means of adding or removing moisture to maintain specific humidity levels in a space are provided with automatic humidity control devices, per Sentence 5.2.9.1.(1)."]
["37a","Except for specialized exhaust systems noted in Sentence 5.2.10.1.(3), exhaust air systems whose design supply fan airflow rate meets or exceeds the applicable values in Tables 5.2.10.1.-A and -B are equipped with an energy recovery system, per Sentence 5.2.10.1.(1).","Except for specialized exhaust systems noted in Sentence 5.2.10.1.(3), exhaust air systems whose design supply fan airflow rate meets or exceeds the applicable values in Tables 5.2.10.1.-A and -B are equipped with an energy recovery system, per Sentence 5.2.10.1.(1)."]
["37b","Energy recovered in accordance with Sentence 5.2.10.1.(1) is used in the building's systems, per Sentence 5.2.10.1.(2).","Energy recovered in accordance with Sentence 5.2.10.1.(1) is used in the building's systems, per Sentence 5.2.10.1.(2)."]
["37c","Energy recovery systems required by Sentence 5.2.10.1.(1) have at least 50% energy recovery effectiveness, per Sentence 5.2.10.1.(4).","Energy recovery systems required by Sentence 5.2.10.1.(1) have at least 50% energy recovery effectiveness, per Sentence 5.2.10.1.(4)."]
["37d","At airflow rates not less than the system design capacity, the energy recovery effectiveness of an energy recovery apparatus referred to in Sentence 5.2.10.1.(1). is determined to be in conformance with the test method described in AHRI 1061, CAN/CSA-C439, or ANSI/ASHRAE 84, per Sentence 5.2.10.1.(5).","At airflow rates not less than the system design capacity, the energy recovery effectiveness of an energy recovery apparatus referred to in Sentence 5.2.10.1.(1). is determined to be in conformance with the test method described in AHRI 1061, CAN/CSA-C439, or ANSI/ASHRAE 84, per Sentence 5.2.10.1.(5)."]
["37e","Installed energy recovery systems include bypass or control measures so their operation does not cause the HVAC system's supply air temperature to overshoot the set-point, per Sentence 5.2.10.1.(6).","Installed energy recovery systems include bypass or control measures so their operation does not cause the HVAC system's supply air temperature to overshoot the set-point, per Sentence 5.2.10.1.(6)."]
[38,{"$f":"CONCATENATE(C81,E81,F81,D81)","v":"Applicable pools are provided with systems capable of recovering at least 40% of the sensible heat from exhaust air at design conditions according to Sentence 5.2.10.2.(1)."},"Applicable pools are provided with systems capable of recovering at least 40% of the sensible heat from exhaust air at design conditions according to Sentence 5.2.10.2.(1)."]
[39,"The refrigeration system of applicable ice arenas or curling rinks incorporate a means of recovering the heat rejected by the system to satisfy some or all of the building's space-heating or service water heating requirement, per 5.2.10.3.(1).","The refrigeration system of applicable ice arenas or curling rinks incorporate a means of recovering the heat rejected by the system to satisfy some or all of the building's space-heating or service water heating requirement, per 5.2.10.3.(1)."]
["40a","Self-contained mechanical ventilation systems serving a single dwelling unit in climate zones 7a, 7b, or 8, are equipped with heat-recovery capability on the principal exhaust component, per Sentence 5.2.10.4.(1).","Self-contained mechanical ventilation systems serving a single dwelling unit in climate zones 7a, 7b, or 8, are equipped with heat-recovery capability on the principal exhaust component, per Sentence 5.2.10.4.(1)."]
["40b","Heat-recovery ventilators used to meet the requirements of Sentence 5.2.10.4.(1) have a sensible heat-recovery efficiency that meets the requirements of Sentence 5.2.10.4.(2).","Heat-recovery ventilators used to meet the requirements of Sentence 5.2.10.4.(1) have a sensible heat-recovery efficiency that meets the requirements of Sentence 5.2.10.4.(2)."]
["40c","Where a heat-recovery system other than a heat-recovery ventilator is used to meet the requirements of Sentence 5.2.10.4.(1), that system has a heat-recovery performance equivalent to that required in Sentence 5.2.4.(2) for heat-recovery ventilators, per Sentence 5.2.10.4.(4).","Where a heat-recovery system other than a heat-recovery ventilator is used to meet the requirements of Sentence 5.2.10.4.(1), that system has a heat-recovery performance equivalent to that required in Sentence 5.2.4.(2) for heat-recovery ventilators, per Sentence 5.2.10.4.(4)."]
["40d","Where heat-recovery systems are required in multi-unit residential buildings, the minimum sensible-heat recovery efficiency is 50%, per Sentence 5.2.10.4.(5).","Where heat-recovery systems are required in multi-unit residential buildings, the minimum sensible-heat recovery efficiency is 50%, per Sentence 5.2.10.4.(5)."]
["41a","Applicable systems serving dwelling units or other areas that are not intended to operate continuously and whose zone-heating or \n-cooling capacity requirements is 5 kW or more, are equipped with controls capable of setting back or shutting down the systems during the perios of non-use of the zones served, according to Sentence 5.2.11.1.(1).","Applicable systems serving dwelling units or other areas that are not intended to operate continuously and whose zone-heating or \n-cooling capacity requirements is 5 kW or more, are equipped with controls capable of setting back or shutting down the systems during the perios of non-use of the zones served, according to Sentence 5.2.11.1.(1)."]
["41b","Off-hours controls required in Sentence 5.2.11.1.(1) meet the capabilities listed in Sentence 5.2.11.1.(2)","Off-hours controls required in Sentence 5.2.11.1.(1) meet the capabilities listed in Sentence 5.2.11.1.(2)"]
["41c","Controls required by Sentence 5.2.11.1.(1) are designed so energy is not spent to reach off-hours setpoints in accordance with Sentence 5.2.11.1.(4).","Controls required by Sentence 5.2.11.1.(1) are designed so energy is not spent to reach off-hours setpoints in accordance with Sentence 5.2.11.1.(4)."]
["42a","Unless impractical, in which case Sentence 5.2.11.2.(2) applies, each air distribution system serving multiple temperature-control zones with a combined area of more than 2500 m2 is divided into airflow control areas so that the supply and exhaust of air to individual areas can be reduced or stopped independently of other areas served by the system, per Sentence 5.2.11.2.(1).","Unless impractical, in which case Sentence 5.2.11.2.(2) applies, each air distribution system serving multiple temperature-control zones with a combined area of more than 2500 m2 is divided into airflow control areas so that the supply and exhaust of air to individual areas can be reduced or stopped independently of other areas served by the system, per Sentence 5.2.11.2.(1)."]
["42b","Where impractical to control air distribution as described in Sentence 5.2.11.2.(1), individual air distribution systems serve airflow control areas no greater than 2500 m2, per Sentence 5.2.11.2.(2).","Where impractical to control air distribution as described in Sentence 5.2.11.2.(1), individual air distribution systems serve airflow control areas no greater than 2500 m2, per Sentence 5.2.11.2.(2)."]
["42c","Each airflow control area required in Sentences 5.2.11.2.(1) and (2) include only temperature-control zones intended to be operated simultaneously, per Sentence 5.2.11.2.(3).","Each airflow control area required in Sentences 5.2.11.2.(1) and (2) include only temperature-control zones intended to be operated simultaneously, per Sentence 5.2.11.2.(3)."]
["42d","Each airflow control area required in Sentences 5.2.11.2.(1) and (2) does not span more than one storey, per Sentence 5.2.11.2.(4).","Each airflow control area required in Sentences 5.2.11.2.(1) and (2) does not span more than one storey, per Sentence 5.2.11.2.(4)."]
["42e","Each airflow control area required in Sentence 5.2.11.2.(1) is equipped with controls meeting the requirements of Article 5.2.11.1., per Sentence 5.2.11.2.(5).","Each airflow control area required in Sentence 5.2.11.2.(1) is equipped with controls meeting the requirements of Article 5.2.11.1., per Sentence 5.2.11.2.(5)."]
["42f","The air distribution system is designed such that a reduction in air delivery of up to 50% of design flow results in at least a proportional reduction in fan power, per Sentence 5.2.11.2.(6).","The air distribution system is designed such that a reduction in air delivery of up to 50% of design flow results in at least a proportional reduction in fan power, per Sentence 5.2.11.2.(6)."]
["42g","Controls and devices are provided to allow stable operation of all fan systems and associated primary systems for any length of time while they are serving a single airflow control area, per Sentence 5.2.11.2.(7).","Controls and devices are provided to allow stable operation of all fan systems and associated primary systems for any length of time while they are serving a single airflow control area, per Sentence 5.2.11.2.(7)."]
[43,"HVAC pumping systems operated on a seasonal basis are provided with the controls required in Sentence 5.2.11.3.(1).","HVAC pumping systems operated on a seasonal basis are provided with the controls required in Sentence 5.2.11.3.(1)."]
["44a","HVAC systems with multiple boilers incorporate a means for preventing heat loss through the boilers when they are not operating, as required by Sentence 5.2.11.4.(1).","HVAC systems with multiple boilers incorporate a means for preventing heat loss through the boilers when they are not operating, as required by Sentence 5.2.11.4.(1)."]
["44b","For heating loads > 176 kW and ≤ 352 kW, the boiler plant is designed in accordance with Sentence 5.2.11.4.(2).","For heating loads > 176 kW and ≤ 352 kW, the boiler plant is designed in accordance with Sentence 5.2.11.4.(2)."]
["44c","For heating loads > 352 kW, the boiler plant is fully modulating, per Sentence 5.2.11.4.(3).","For heating loads > 352 kW, the boiler plant is fully modulating, per Sentence 5.2.11.4.(3)."]
[45,"Applicable chilled- and/or hot-water systems with design capacity greater than 88 kW are provided with a temperature reset that meets the requirements of Sentence 5.2.11.5.(1).","Applicable chilled- and/or hot-water systems with design capacity greater than 88 kW are provided with a temperature reset that meets the requirements of Sentence 5.2.11.5.(1)."]
[46,"Unitary and packaged HVAC equipment and components with capacities listed in Table 5.2.12.1. comply with the performance requirements of Table 5.2.12.1., per Sentence 5.2.12.1.(1). Please complete the Part 5 - Details tab.","Unitary and packaged HVAC equipment and components with capacities listed in Table 5.2.12.1. comply with the performance requirements of Table 5.2.12.1., per Sentence 5.2.12.1.(1). Please complete the Part 5 - Details tab."]
["47a","Standalone heat rejection equipment and their components not covered by Article 5.2.12.1. meet the requirements of Table 5.2.12.2., per Sentence 5.2.12.2.(2). Please complete the Part 5 - Details tab.","Standalone heat rejection equipment and their components not covered by Article 5.2.12.1. meet the requirements of Table 5.2.12.2., per Sentence 5.2.12.2.(2). Please complete the Part 5 - Details tab."]
["47b","Constant speed fans operate with cycling controls to maintain the leaving fluid temperature or condensing temperature/pressure of the heat rejection equipment at the set-point, per Sentence 5.2.12.2.(3).","Constant speed fans operate with cycling controls to maintain the leaving fluid temperature or condensing temperature/pressure of the heat rejection equipment at the set-point, per Sentence 5.2.12.2.(3)."]
[48,"If components from more than one manufacturer are used as parts of an HVAC system, the system is designed in accordance with good engineering practice and based on component data provided by the component manufacturer so as to provide the overall efficiency required by Article 5.2.12.1., per Sentence 5.2.12.3.(1).","If components from more than one manufacturer are used as parts of an HVAC system, the system is designed in accordance with good engineering practice and based on component data provided by the component manufacturer so as to provide the overall efficiency required by Article 5.2.12.1., per Sentence 5.2.12.3.(1)."]
[49,"Service water heating equipment used solely to provide space heating or used to provide a combination of space and service water heating complies with the applicable standard listed in Table 6.2.2.1. or, where such equipment is not covered in this Table, with the \"Energy Efficiency Act and its Regulations\", per Sentence 5.2.12.4.(1).","Service water heating equipment used solely to provide space heating or used to provide a combination of space and service water heating complies with the applicable standard listed in Table 6.2.2.1. or, where such equipment is not covered in this Table, with the \"Energy Efficiency Act and its Regulations\", per Sentence 5.2.12.4.(1).",null,null,null,0]

{"sheet":"Part 5 - Details","index":9,"n_rows":7,"n_cols":7,"rows_kept":7,"cut":false,"hidden":true,"merged":[[0,0,0,6],[1,0,1,6]]}
["Part 5 - Details"]
["Please complete sheet for all HVAC components/equipment in the building. Refer to Tables 5.2.12.1. and 5.2.12.2. for additional information."]
["Equipment #","Equipment Description","Component or Equipment Type","Cooling or Heating Capacity, kW","Standard","Rating Condition","Equipment Performance"]
[{"$f":"ROW(A4)-3","v":1}]
[{"$f":"ROW(A5)-3","v":2}]
[3]
[4]

{"sheet":"Part 5 - Trade-off","index":10,"n_rows":15,"n_cols":9,"rows_kept":15,"cut":false,"hidden":true,"merged":[[1,8,6,8],[0,0,0,8],[2,1,2,5]]}
["Part 5 - Trade-off"]
[{"$f":"'Building Information'!A19:B19","v":"Project Name"},{"$f":"'Building Information'!C19","v":"00:00:00"},null,null,null,null,null,null,{"$f":"IF(SUM(G12:G20) = 33,\"NECB 2015 Compliant\", \"\")","v":""}]
[{"$f":"'Building Information'!A18:B18","v":"Date (yyyy-mm-dd)"},{"$f":"'Building Information'!$C$18","v":"00:00:00"}]
[{"$f":"'Building Information'!A21:B21","v":"Contact Person"},{"$f":"'Building Information'!C21","v":0}]
["HVAC Contact",{"$f":"'Compliance Paths'!F17","v":" "}]
["Climate Zone",{"$f":"'Building Information'!C38","v":""}]
[null,{"$f":"IF('Building Information'!C28= \"No\", \"Fully Heated Building\", \"Semi-heated Building\")","v":"Fully Heated Building"}]
["Building Permit Number",{"$f":"'Building Information'!I16","v":" (for internal use only)"}]
[]
["#","Question",null,null,"Requirements","Units",null,"Compliant?","Additional Comments"]
[null,"Trade-off - General"]
[1,{"$f":"CONCATENATE(C12,E12,F12,D12)","v":"This Section is complete for all applicable heating, ventilating and air conditioning (HVAC) systems and equipment covered by Section 5.3., as listed in Sentence 5.3.1.1.(1). For HVAC systems not covered by Section 5.3., either the prescriptive or performance path must be used."},"This Section is complete for all applicable heating, ventilating and air conditioning (HVAC) systems and equipment covered by Section 5.3., as listed in Sentence 5.3.1.1.(1). For HVAC systems not covered by Section 5.3., either the prescriptive or performance path must be used."]
[2,{"$f":"CONCATENATE(C13,E13,F13,D13)","v":"All back-up HVAC systems comply with Sentence 5.1.1.3.(2), per Sentence 5.3.1.2.(1). Compliance for back-up systems cannot be demonstrated using the trade-off path. "},"All back-up HVAC systems comply with Sentence 5.1.1.3.(2), per Sentence 5.3.1.2.(1). Compliance for back-up systems cannot be demonstrated using the trade-off path. "]
[-1,"Section 5.3. - Trade-off"]
[3,"The HVAC trade-off index, HVACTOI, as calculated in accordance with Subsection 5.3.2., is greater than or equal to 0. To demonstrate compliance, please append calculations or Part 5 Trade-off Path Calculation Tool output to this checklist. Enter the HVACTOI below. ",null,null,null,null,{"$f":"IF(OR(H15=\"N/A\",H15=\"Yes\")=TRUE, 1, 0)","v":0},{"$f":"IF(A16<>\"\", IF(A16>=0,\"Yes\", \"No\"), \"\")","v":""}]

{"sheet":"Part 6 - Prescriptive","index":11,"n_rows":42,"n_cols":9,"rows_kept":42,"cut":false,"hidden":true,"merged":[[1,8,6,8],[0,0,0,8],[2,1,2,5]]}
["Part 6 - Prescriptive"]
[{"$f":"'Building Information'!A19:B19","v":"Project Name"},{"$f":"'Building Information'!C19","v":"00:00:00"},null,null,null,null,null,null,{"$f":"IF(SUM(G12:G20) = 33,\"NECB 2015 Compliant\", \"\")","v":""}]
[{"$f":"'Building Information'!A18:B18","v":"Date (yyyy-mm-dd)"},{"$f":"'Building Information'!C18","v":"00:00:00"}]
[{"$f":"'Building Information'!A21:B21","v":"Contact Person"},{"$f":"'Building Information'!C21","v":0}]
["SWH Contact",{"$f":"'Compliance Paths'!F22","v":" "}]
["Climate Zone",{"$f":"'Building Information'!C38","v":""}]
[null,{"$f":"IF('Building Information'!C28= \"No\", \"Fully Heated Building\", \"Semi-heated Building\")","v":"Fully Heated Building"}]
["Building Permit Number",{"$f":"'Building Information'!I16","v":" (for internal use only)"}]
[]
["#","Question",null,null,"Requirements","Units",null,"Compliant?","Additional Comments"]
[null,"Section 6.1 - General"]
[1,{"$f":"CONCATENATE(C12,E12,F12,D12)","v":"This Section is complete for all applicable service water heating (SWH) systems and pumping systems in the building, per Article 6.1.1.2."},"This Section is complete for all applicable service water heating (SWH) systems and pumping systems in the building, per Article 6.1.1.2."]
[2,{"$f":"CONCATENATE(C13,E13,F13,D13)","v":"This Section is complete for all back-up SWH systems covered by the NECB, per Sentence 6.1.1.3.(2)."},"This Section is complete for all back-up SWH systems covered by the NECB, per Sentence 6.1.1.3.(2)."]
[null,"Section 6.1 - Prescriptive Path"]
[3,"SWH systems are designed in accordance with the relevant provincial, territorial or municipal building regulations or, in the absence of such regulations, or where service water systems are not covered by such regulations, with the NPC, per Sentence 6.2.1.1.(1).","SWH systems are designed in accordance with the relevant provincial, territorial or municipal building regulations or, in the absence of such regulations, or where service water systems are not covered by such regulations, with the NPC, per Sentence 6.2.1.1.(1)."]
[4,"Service water and pool heaters with the capacities listed in Table 6.2.2.1. comply with the performance requirements listed in Table 6.2.2.1., per Sentence 6.2.2.1.(1). Please complete the Part 6 - Details tab.","Service water and pool heaters with the capacities listed in Table 6.2.2.1. comply with the performance requirements listed in Table 6.2.2.1., per Sentence 6.2.2.1.(1). Please complete the Part 6 - Details tab."]
["5a","Except for tanks covered by Article 6.2.2.1., service hot water storage tanks are covered with insulation having a maximum U-value of 0.45 W/(m2∙K), per Sentence 6.2.2.2.(1).","Except for tanks covered by Article 6.2.2.1., service hot water storage tanks are covered with insulation having a maximum U-value of 0.45 W/(m2∙K), per Sentence 6.2.2.2.(1)."]
["5b","Tank insulation referred to in Sentence 6.2.2.2.(1) that is installed in areas where is may be subject to mechanical damage is protected, as per Sentence 6.2.2.2.(2).","Tank insulation referred to in Sentence 6.2.2.2.(1) that is installed in areas where is may be subject to mechanical damage is protected, as per Sentence 6.2.2.2.(2)."]
[6,"Service water heating equipment using solar thermal technology is designed and installed in accordance with either the manufacturer's procedures or CAN/CSA F379 SERIES, per Sentence 6.2.2.3.(1).","Service water heating equipment using solar thermal technology is designed and installed in accordance with either the manufacturer's procedures or CAN/CSA F379 SERIES, per Sentence 6.2.2.3.(1)."]
["7a","Combination service water heating and space-heating equipment is only used where the input to the unit is within the limits set in Sentence 6.2.2.4.(1).","Combination service water heating and space-heating equipment is only used where the input to the unit is within the limits set in Sentence 6.2.2.4.(1)."]
["7b","The performance of combination equipment meets the requirements of Sentence 6.2.2.4.(2).","The performance of combination equipment meets the requirements of Sentence 6.2.2.4.(2)."]
[8,"Space-heating equipment used solely to provide indirect service water heating or used to provide a combination of space heating and indirect service water heating complies with the energy efficiency requirements of Sentence 6.2.2.5.(1).","Space-heating equipment used solely to provide indirect service water heating or used to provide a combination of space heating and indirect service water heating complies with the energy efficiency requirements of Sentence 6.2.2.5.(1)."]
["9a","All piping conveying hot service water in circulating systems, non-circulating systems without heat traps and non-circulating systems with electric heating elements along the pipes to maintain temperature are insulated in accordance with Table 6.2.3.1. and Sentences 6.2.3.1.(2) to (4), per Sentence 6.2.3.1.(1).","All piping conveying hot service water in circulating systems, non-circulating systems without heat traps and non-circulating systems with electric heating elements along the pipes to maintain temperature are insulated in accordance with Table 6.2.3.1. and Sentences 6.2.3.1.(2) to (4), per Sentence 6.2.3.1.(1)."]
["9b","On non-circulating systems with heat traps, the inlet and outlet piping between the storage or heating vessel and the heat traps as well as the first 2.4 m of outlet piping downstream of the heat trap, are insulated in accordance with Table 6.2.3.1. and Sentences 5.2.5.3.(4) to (6), per Sentence 6.2.3.1.(5).","On non-circulating systems with heat traps, the inlet and outlet piping between the storage or heating vessel and the heat traps as well as the first 2.4 m of outlet piping downstream of the heat trap, are insulated in accordance with Table 6.2.3.1. and Sentences 5.2.5.3.(4) to (6), per Sentence 6.2.3.1.(5)."]
["9c","The insulation thickness used to determined compliance with Table 6.2.3.1. is the thickness of the insulation after its installation, per Sentence 6.2.3.1.(6).","The insulation thickness used to determined compliance with Table 6.2.3.1. is the thickness of the insulation after its installation, per Sentence 6.2.3.1.(6)."]
["9d","Insulation on piping conveying hot service water that is installed in areas where it may be subject to mechanical damage or weathering is protected, per Sentece 6.2.3.1.(7).","Insulation on piping conveying hot service water that is installed in areas where it may be subject to mechanical damage or weathering is protected, per Sentece 6.2.3.1.(7)."]
[10,"Service water heating systems with storage tanks are equipped with automatic temperature controls capable of adjustment between the lowest and the highest acceptable temperature settings for the intended use, per Sentence 6.2.4.1.(1).","Service water heating systems with storage tanks are equipped with automatic temperature controls capable of adjustment between the lowest and the highest acceptable temperature settings for the intended use, per Sentence 6.2.4.1.(1)."]
[11,"Each service water heating system with a storage capacity greater than or equal to 100 L is equipped with shut-off devices as required by Sentence 6.2.4.2.(1).","Each service water heating system with a storage capacity greater than or equal to 100 L is equipped with shut-off devices as required by Sentence 6.2.4.2.(1)."]
[12,"Heating elements installed along service water heating system pipes incorporate automatic controls that maintain the temperature of the hot water within the range required for the intended use, per Sentence 6.2.4.3.(1).","Heating elements installed along service water heating system pipes incorporate automatic controls that maintain the temperature of the hot water within the range required for the intended use, per Sentence 6.2.4.3.(1)."]
[13,"Where less than 50% of the total design flow of a service water heating system has a design discharge temperature higher than 60°C, separate remote heaters or booster heaters are installed that meet the requirements of Sentence 6.2.5.1.(1).","Where less than 50% of the total design flow of a service water heating system has a design discharge temperature higher than 60°C, separate remote heaters or booster heaters are installed that meet the requirements of Sentence 6.2.5.1.(1)."]
["14a","Except for emergency eye washes and emergency showers, individual shower heads have an integral means of limiting the maximum water flow rate to 7.6 L/min when tested in accordance with ASME A112.18.1/CSA B125.1., per Sentence 6.2.6.1.(1).","Except for emergency eye washes and emergency showers, individual shower heads have an integral means of limiting the maximum water flow rate to 7.6 L/min when tested in accordance with ASME A112.18.1/CSA B125.1., per Sentence 6.2.6.1.(1)."]
["14b","Each shower head in a public showering facility with multiple shower heads served by one temperature control is equipped with a device capable of automatically shutting off the flow of water when the shower head is not in use, per Sentence 6.2.6.1.(2).","Each shower head in a public showering facility with multiple shower heads served by one temperature control is equipped with a device capable of automatically shutting off the flow of water when the shower head is not in use, per Sentence 6.2.6.1.(2)."]
["15a","Except for lavatories in health care facilities and emergency eye washes, all lavatories have an integral means of limiting the maximum water flow rate to 5.7 L/min for private use and 1.9 L/min for public use, when tested in accordance with ASME A112.18.1/CSA B125.1., per Sentence 6.2.6.2.(1).","Except for lavatories in health care facilities and emergency eye washes, all lavatories have an integral means of limiting the maximum water flow rate to 5.7 L/min for private use and 1.9 L/min for public use, when tested in accordance with ASME A112.18.1/CSA B125.1., per Sentence 6.2.6.2.(1)."]
["15b","Each lavatory in a public access washroom in a building of assembly occupancy is equipped with a device capable of automatically shutting off the flow of water when the lavatory is not in use, per Sentence 6.2.6.2.(2).","Each lavatory in a public access washroom in a building of assembly occupancy is equipped with a device capable of automatically shutting off the flow of water when the lavatory is not in use, per Sentence 6.2.6.2.(2)."]
["16a","Pool heaters are equipped with a readily accessible and clearly labeled device that allows for their control per the requirements of Sentence 6.2.7.1.(1).","Pool heaters are equipped with a readily accessible and clearly labeled device that allows for their control per the requirements of Sentence 6.2.7.1.(1)."]
["16b",{"$f":"CONCATENATE(C36,E36,F36,D36)","v":"Applicable swimming pool pumps and swimming pool heaters are equipped with controls meeting the requirements of Sentence 6.2.7.1.(2)."},"Applicable swimming pool pumps and swimming pool heaters are equipped with controls meeting the requirements of Sentence 6.2.7.1.(2)."]
["17a","Heated outdoor swimming pools and/or hot tubs are equipped with covers capable of covering at least 90% of the water surface, per Sentence 6.2.7.2.(1).","Heated outdoor swimming pools and/or hot tubs are equipped with covers capable of covering at least 90% of the water surface, per Sentence 6.2.7.2.(1)."]
["17b","Pools or tubs described in Sentence 6.2.7.2.(1) and heated to a temperature above 32ºC are equipped with covers having a nominal thermal transmittance of no more than 0.48 W/m2∙ºC, per Sentence 6.2.7.2.(2).","Pools or tubs described in Sentence 6.2.7.2.(1) and heated to a temperature above 32ºC are equipped with covers having a nominal thermal transmittance of no more than 0.48 W/m2∙ºC, per Sentence 6.2.7.2.(2)."]
["18a","Constant-speed pressure booster systems are provided with a hydro-pneumatic storage tank sized to store a volume of water corresponding to at least 1 minute of operation at the system’s design flow rate and pressure, per Sentence 6.2.8.1.(1).","Constant-speed pressure booster systems are provided with a hydro-pneumatic storage tank sized to store a volume of water corresponding to at least 1 minute of operation at the system’s design flow rate and pressure, per Sentence 6.2.8.1.(1)."]
["18b","Variable-speed pressure booster systems are provided with a hydro-pneumatic storage tank sized to store a volume of water corresponding to at least 1 minute of operation at 10% of the system’s design flow rate and pressure, per Sentence 6.2.8.1.(2).","Variable-speed pressure booster systems are provided with a hydro-pneumatic storage tank sized to store a volume of water corresponding to at least 1 minute of operation at 10% of the system’s design flow rate and pressure, per Sentence 6.2.8.1.(2)."]
["19a","Pressure booster systems are provided with at least one pressure sensor that starts and stops the system or varies the pump speed so that the pressure required for operation of the service water system is maintained, per Sentence 6.2.8.2.(1).","Pressure booster systems are provided with at least one pressure sensor that starts and stops the system or varies the pump speed so that the pressure required for operation of the service water system is maintained, per Sentence 6.2.8.2.(1)."]
["19b","Except for safety devices, pressure-reducing devices are not installed on a pressure booster system, per Sentence 6.2.8.2.(2).","Except for safety devices, pressure-reducing devices are not installed on a pressure booster system, per Sentence 6.2.8.2.(2)."]

{"sheet":"Part 6 - Details","index":12,"n_rows":7,"n_cols":10,"rows_kept":7,"cut":false,"hidden":true,"merged":[[0,0,0,9],[1,0,1,9]]}
["Part 6 - Details"]
["Please complete sheet for all SWH components/equipment in the building. Refer to Table 6.2.2.1. for additional information."]
["Equipment #","Equipment Description","Component Type","Input","Capacity, L","Vt, L","Input/Vt , W/L","Standard","Rating Conditions","Equipment Performance"]
[{"$f":"ROW(A4)-3","v":1}]
[{"$f":"ROW(A5)-3","v":2}]
[3]
[4]

{"sheet":"Part 6 - Trade-off","index":13,"n_rows":15,"n_cols":9,"rows_kept":15,"cut":false,"hidden":true,"merged":[[1,8,6,8],[0,0,0,8],[2,1,2,5]]}
["Part 6 - Trade-off"]
[{"$f":"'Building Information'!A19:B19","v":"Project Name"},{"$f":"'Building Information'!C19","v":"00:00:00"},null,null,null,null,null,null,{"$f":"IF(SUM(G12:G20) = 33,\"NECB 2015 Compliant\", \"\")","v":""}]
[{"$f":"'Building Information'!A18:B18","v":"Date (yyyy-mm-dd)"},{"$f":"'Building Information'!C18","v":"00:00:00"}]
[{"$f":"'Building Information'!A21:B21","v":"Contact Person"},{"$f":"'Building Information'!C21","v":0}]
["SWH Contact",{"$f":"'Compliance Paths'!F22","v":" "}]
["Climate Zone",{"$f":"'Building Information'!C38","v":""}]
[null,{"$f":"IF('Building Information'!C28= \"No\", \"Fully Heated Building\", \"Semi-heated Building\")","v":"Fully Heated Building"}]
["Building Permit Number",{"$f":"'Building Information'!I16","v":" (for internal use only)"}]
[]
["#","Question",null,null,"Requirements","Units",null,"Compliant?","Additional Comments"]
[null,"Trade-off - General"]
[1,{"$f":"CONCATENATE(C12,E12,F12,D12)","v":"This Section is complete for all applicable service water heating (SWH) systems covered by Section 6.3., as listed in Sentence 6.3.1.1.(1). For SWH systems not covered by Section 6.3., either the prescriptive or performance paths must be used."},"This Section is complete for all applicable service water heating (SWH) systems covered by Section 6.3., as listed in Sentence 6.3.1.1.(1). For SWH systems not covered by Section 6.3., either the prescriptive or performance paths must be used."]
[2,{"$f":"CONCATENATE(C13,E13,F13,D13)","v":"All back-up SWH systems comply with Sentence 6.1.1.3.(2), per Sentence 6.3.1.2.(1). Compliance for back-up systems cannot be demonstrated using the trade-off path. "},"All back-up SWH systems comply with Sentence 6.1.1.3.(2), per Sentence 6.3.1.2.(1). Compliance for back-up systems cannot be demonstrated using the trade-off path. "]
[null,"Section 6.3. - Trade-off"]
[3,"The SWH trade-off index, SWH-TOI, as calculated in accordance with Subsection 6.3.2., is greater than or equal to 0. To demonstrate compliance, please append calculations or Part 6 Trade-off Path Calculation Tool output to this checklist. Enter the SWH-TOI below. ",null,null,null,null,null,{"$f":"IF(A16<>\"\", IF(A16>=0,\"Yes\", \"No\"),\"\")","v":""}]

{"sheet":"Part 7 - Prescriptive","index":14,"n_rows":19,"n_cols":9,"rows_kept":19,"cut":false,"hidden":true,"merged":[[1,8,6,8],[0,0,0,8],[2,1,2,5]]}
["Part 7 - Prescriptive"]
[{"$f":"'Building Information'!A19:B19","v":"Project Name"},{"$f":"'Building Information'!C19","v":"00:00:00"},null,null,null,null,null,null,{"$f":"IF(SUM(G12:G20) = 33,\"NECB 2015 Compliant\", \"\")","v":""}]
[{"$f":"'Building Information'!A18:B18","v":"Date (yyyy-mm-dd)"},{"$f":"'Building Information'!C18","v":"00:00:00"}]
[{"$f":"'Building Information'!A21:B21","v":"Contact Person"},{"$f":"'Building Information'!C21","v":0}]
["Electrical Contact",{"$f":"'Compliance Paths'!F27","v":" "}]
["Climate Zone",{"$f":"'Building Information'!C38","v":""}]
[null,{"$f":"IF('Building Information'!C28= \"No\", \"Fully Heated Building\", \"Semi-heated Building\")","v":"Fully Heated Building"}]
["Building Permit Number",{"$f":"'Building Information'!I16","v":" (for internal use only)"}]
[]
["#","Question",null,null,"Requirements","Units",null,"Compliant?","Additional Comments"]
[null,"Part 7.1 - General"]
[1,{"$f":"CONCATENATE(C12,E12,F12,D12)","v":"This Section is complete for all electrical power systems and motors connected to the building's electrical service, per Article 7.1.1.2."},"This Section is complete for all electrical power systems and motors connected to the building's electrical service, per Article 7.1.1.2.",null,null,null,{"$f":"IF(OR(H12=\"N/A\",H12=\"Yes\")=TRUE, 1, 0)","v":0}]
[null,"Part 7 - Prescriptive Path"]
[3,{"$f":"CONCATENATE(C14,E14,F14,D14)","v":"Electric distribution systems whose load-carrying capacity is greater than 250 kVA are designed to facilitate the installation of a means to monitor the eletrical energy consumption of HVAC systems, interior lighting, and exterior lighting, per Sentence 7.2.1.1.(1)."},"Electric distribution systems whose load-carrying capacity is greater than 250 kVA are designed to facilitate the installation of a means to monitor the eletrical energy consumption of HVAC systems, interior lighting, and exterior lighting, per Sentence 7.2.1.1.(1).",null,null,null,{"$f":"IF(OR(H14=\"N/A\",H14=\"Yes\")=TRUE, 1, 0)","v":0}]
[4,"Electrical distribution systems of buildings with tenants or dwellings units have a means to separately monitor the electrical energy consumption of the total building and of each individual tenant or dwelling unit, per Sentence 7.2.1.1.(2).","Electrical distribution systems of buildings with tenants or dwellings units have a means to separately monitor the electrical energy consumption of the total building and of each individual tenant or dwelling unit, per Sentence 7.2.1.1.(2).",null,null,null,{"$f":"IF(OR(H15=\"N/A\",H15=\"Yes\")=TRUE, 1, 0)","v":0}]
[5,"Feeder conductors are sized for a maximum voltage drop of 2% at design load, per Sentence 7.2.2.1.(1).","Feeder conductors are sized for a maximum voltage drop of 2% at design load, per Sentence 7.2.2.1.(1)."]
[6,"Branch circuit conductors are sized for a maximum voltage drop of 3% at design load, per Sentence 7.2.2.2.(1).","Branch circuit conductors are sized for a maximum voltage drop of 3% at design load, per Sentence 7.2.2.2.(1)."]
[7,"Transformers installed in the building conform to either CSA C802.1, CSA C802.2, or CAN/CSA-C802.3, per Sentence 7.2.3.1.(1).","Transformers installed in the building conform to either CSA C802.1, CSA C802.2, or CAN/CSA-C802.3, per Sentence 7.2.3.1.(1)."]
[8,"Applicable motors have nominal full load efficiencies not less that specified in Sentence 7.2.4.1.(1).","Applicable motors have nominal full load efficiencies not less that specified in Sentence 7.2.4.1.(1)."]

{"sheet":"Part 8 - Performance","index":15,"n_rows":95,"n_cols":13,"rows_kept":95,"cut":false,"hidden":true,"merged":[[2,1,2,5],[40,6,40,7],[0,0,0,8],[39,6,39,7],[1,8,6,8],[18,6,18,7],[19,6,19,7],[38,6,38,7],[37,6,37,7],[9,0,9,7],[10,6,10,7],[17,6,17,7],[20,6,20,7],[21,6,21,7],[22,6,22,7],[23,6,23,7],[29,6,29,7],[56,6,56,7],[52,6,52,7],[53,6,53,7],[54,6,54,7],[55,6,55,7],[36,6,36,7],[35,6,35,7],[33,6,33,7],[32,6,32,7],[31,6,31,7],[24,6,24,7],[25,6,25,7],[26,6,26,7],[27,6,27,7],[28,6,28,7],[92,6,92,7],[93,6,93,7],[94,6,94,7],[87,6,87,7],[88,6,88,7],[89,6,89,7],[90,6,90,7],[91,6,91,7]]}
["Part 8 - Performance Compliance"]
[{"$f":"'Building Information'!A19:B19","v":"Project Name"},{"$f":"'Building Information'!C19","v":"00:00:00"},null,null,null,null,null,null,{"$f":"IF(SUM(G12:G20) = 33,\"NECB 2015 Compliant\", \"\")","v":""}]
[{"$f":"'Building Information'!A18:B18","v":"Date (yyyy-mm-dd)"},{"$f":"'Building Information'!C18","v":"00:00:00"}]
[{"$f":"'Building Information'!A21:B21","v":"Contact Person"},{"$f":"'Building Information'!C21","v":0}]
["Energy Modeling Contact",{"$f":"'Compliance Paths'!F32","v":" "}]
["Climate Zone",{"$f":"'Building Information'!C38","v":""}]
[null,{"$f":"IF('Building Information'!C28= \"No\", \"Fully Heated Building\", \"Semi-heated Building\")","v":"Fully Heated Building"}]
["Building Permit Number",{"$f":"'Building Information'!I16","v":" (for internal use only)"}]
[]
["Compliance Requirements:\nPlease complete all fields below and append a building energy modeling report to this checklist. \n",null,null,null,null,null,null,null,"Additional Comments"]
[null,"Software and Model Information"]
[]
[]
[]
[]
[]
[]
[1,"Software Used"]
[2,"Software Version"]
[null,"The software accounts for the annual energy consumption of:"]
["3a","space-heating equipment"]
["3b","space-cooling equipment"]
["3c","fans"]
["3d","interior and exterior lighting devices"]
["3e","service water heating equipment"]
["3f","pumps"]
["3g","auxiliary HVAC equipment"]
["3h","receptacle loads and miscellaneous equipment as per Article 8.4.2.7."]
["3i"," appliances, and"]
["3j","elevators and escalators."]
[null,"Indicate operating schedule used"]
[null,"Thermal mass is accounted for in proposed and reference models?"]
[null,"Interior heat gain accounted for in proposed and reference models?"]
[null,"Infiltration set to 0.25 L/s-m2 for roof and exterior wall area in proposed and reference models?"]
[null,"Solar properties of glazing (SC or SHGC) (must be identical in proposed and reference models"]
[null,"Core and shell buildings: all future tenant spaces are modeled to prescriptive values?"]
[null,"Daylighting is taken into account (modeled in software or daylighting factors, refer to 8.4.3.4.(3)) in proposed and reference models?"]
[4,"Software used is compliant to ASHRAE 140, or equivalent?"]
[5,"Energy model calculations using time intervals no greater than one hour, performed for a period of one year (8760 hours)?",null,null,null,null,null,null,null,null,null,null,"Software"]
[6,"Operating schedules and climatic data input in the energy model use a time interval no greater than one hour?",null,null,null,null,null,null,null,null,null,null,"Daylighting Factors"]
[7,{"$f":"CONCATENATE(C41,IF(G41='Validation Reference'!M4,$D$41,\"\"))","v":"Please select the compliance path chosen for the exterior lighting design from the dropdown list."},"Please select the compliance path chosen for the exterior lighting design from the dropdown list."," If exterior lighting is Part 4 compliant please fill out Part 4 - Prescriptive tab for exterior lighting requirements only."]
[null,"Advisory Messages",null,null,null,null,"Proposed","Reference"]
[8,"Number of unmet annual heating load hours"]
[9,"Number of unmet annual cooling load hours"]
[null,"Building Energy Summary",null,null,null,null,"Proposed","Reference"]
[10,"Electrical Consumption (MJ/yr)"]
[11,"Gas Consumption (MJ/yr)"]
[12,"Propane Consumption (MJ/yr)"]
[13,"Heating Oil Consumption (MJ/yr)"]
[14,"Total Energy Consumption (MJ/yr)",null,null,null,null,{"$f":"IF(SUM(G46:G49)=0,\"\",SUM(G46:G49))","v":""},{"$f":"IF(SUM(H46:H49)=0,\"\",SUM(H46:H49))","v":""}]
[15,"Total Energy Use Intensity (MJ/m2/yr)",null,null,null,null,{"$f":"IF(AND('Building Information'!C26<>\"\",G50<>\"\"), G50/'Building Information'!C26,\"\")","v":""},{"$f":"IF(AND('Building Information'!C26<>\"\",H50<>\"\"), H50/'Building Information'!C26,\"\")","v":""}]
[null,"Annual Heating Demand (Heating Energy MJ/m2/yr)"]
[null,"Compliance Summary"]
[16,"Building energy performance model in compliance with Article 8.4.1.2."]
[17,"Protection of insulation material in compliance with Article 3.2.1.1."]
[18,"Air leakage in compliance with Subsection 3.2.4."]
[19,{"$f":"CONCATENATE(C57,IF(OR(G57='Validation Reference'!Q2,G57='Validation Reference'!Q5, G57='Validation Reference'!Q6),\"\",$D$57))","v":"Please select the compliance path chosen for the HVAC and SWH design from the dropdown list.If back-up HVAC and/or SWH systems are compliant with Part 5 and 6, respectively, please fill out Part 5 - Prescriptive tab or Part 6 - Prescriptive tabs, for back-up systems only."},"Please select the compliance path chosen for the HVAC and SWH design from the dropdown list.","If back-up HVAC and/or SWH systems are compliant with Part 5 and 6, respectively, please fill out Part 5 - Prescriptive tab or Part 6 - Prescriptive tabs, for back-up systems only."]
[]
[]
[]
[]
[]
[]
[]
[]
[]
[]
[]
[]
[]
[]
[]
[]
[]
[]
[]
[]
[]
[]
[]
[]
[]
[]
[]
[]
[]
[]
[null,"Building Performance Compliance Calculation Report Checklist"]
[20,"Report contains all building envelope information required by Division C Article 2.2.2.3 "]
[21,"Report contains all lighting system information required by Division C Article 2.2.2.4. Include adjustment factors for applicable lighting controls and daylighting."]
[22,"Report contains a description of each HVAC system detailing its function, design details, performance characteristics, and distribution arrangement per Division C Article 2.2.2.4. Include total outdoor air flow and temperature setpoints for both the proposed and reference buildings."]
[23,"Report contains a description of each SWH system detailing its function, design details, performance characteristics, and distribution arrangement per Division C Article 2.2.2.4","Please select the compliance path chosen for the HVAC and SWH design from the dropdown list.","If back-up HVAC and/or SWH systems are compliant with Part 5 and 6, respectively, please fill out Part 5 - Prescriptive tab or Part 6 - Prescriptive tabs, for back-up systems only."]
[24,"Report contains the additional information for building performance compliance per Division C Article 2.2.2.8. Include % savings over the reference building for each energy end use (eg. Space heating, interior lighting, etc.)","Please select the compliance path chosen for the HVAC and SWH design from the dropdown list.","If back-up HVAC and/or SWH systems are compliant with Part 5 and 6, respectively, please fill out Part 5 - Prescriptive tab or Part 6 - Prescriptive tabs, for back-up systems only."]
[25,"Report contains thermal bridging calculations with references to published literature (see A-3.1.1.5.(5)(a).","Please select the compliance path chosen for the HVAC and SWH design from the dropdown list.","If back-up HVAC and/or SWH systems are compliant with Part 5 and 6, respectively, please fill out Part 5 - Prescriptive tab or Part 6 - Prescriptive tabs, for back-up systems only."]
[26,"Report contains a zoning diagram showing modeled thermal blocks.","Please select the compliance path chosen for the HVAC and SWH design from the dropdown list.","If back-up HVAC and/or SWH systems are compliant with Part 5 and 6, respectively, please fill out Part 5 - Prescriptive tab or Part 6 - Prescriptive tabs, for back-up systems only."]

{"sheet":"Validation Reference","index":16,"n_rows":74,"n_cols":17,"rows_kept":74,"cut":false,"hidden":true,"merged":[]}
[null,null,"Climate Zone",null,null,"City ","Zone"]
["Yes",null,"Zone 4: < 3000 HDD",2,null,null,null,null,"Type of Building",null,null,null,null,null,null,null,"Back-up HVAC and SWH Systems Compliant with Part 8"]
["No",null,"Zone 5: 3000 to 3999 HDD",3,null,null,null,null,"New",null,null,null,"Compliant with Part 8",null,null,null,"Back-up HVAC Systems Compliant with Part 8, Back-up SWH System Compliant with Part 6"]
["N/A",null,"Zone 6: 4000 to 4999 HDD",4,null,null,null,null,"Addition to existing building",null,null,null,"Compliant with Part 4 Prescriptive",null,null,null,"Back-up SWH Systems Compliant with Part 8, Back-up HVAC System Compliant with Part 5"]
[null,null,"Zone 7A: 5000 to 5999 HDD",5,null,null,null,null,null,null,null,null,null,null,null,null,"Back-up HVAC Systems Compliant with Part 8, no Back-up SWH System"]
[null,null,"Zone 7B: 6000 to 6999 HDD",6,null,null,null,null,null,null,null,null,null,null,null,null,"Back-up SWH Systems Compliant with Part 8, no Back-up HVAC System"]
[null,null,"Zone 8: ≥ 7000 HDD",7,null,null,null,null,"Building Area Method",null,null,null,null,null,null,null,"Back-up HVAC Systems Compliant with Part 5, no Back-up SWH System"]
[null,null,null,null,null,null,null,null,"Space-by-Space Method",null,null,null,null,null,null,null,"Back-up SWH Systems Compliant with Part 6, no Back-up HVAC System"]
[null,null,null,null,null,null,null,null,null,null,null,null,null,null,null,null,"Back-up HVAC Systems Compliant with Part 5, Back-up SWH Systems Compliant with Part 6"]
["Help Messages"]
["Message 1","Certain NECB requirements are climatic zone dependant. Please refer to Table C-1 for to find the number of heating degree-days (HDD) for your building location and enter the number of HDDs for your building location. If the building is semi-heated select the appropriate value from the 'Degree-Days Below 15C' column and enter the value under the \"Heating Degree Days 15C\" field."]
["Message 2","A building with a design set-point temperature less that 15C is considered to be 'semi-heated'."]
["Message 3","For additional information on calculating building envelope areas, please refer to Article 3.1.1.6."]
["Message 4","Applicable HVAC systems types, as described in Sentence 5.2.2.7.(1), must be designed to reduce mechnanical cooling either by direct use of outdoor air (Article 5.2.2.8.) or by indirect use of outdoor air (Article 5.2.2.9.), not both types. Systems serving only dwelling units, or hotels or motel rooms, or systems that have an air handling capacity less than or equal to 1500 L/s or a cooling capacity less than 20 kW, need not comply with Sentence 5.2.2.7.(1)."]
["Message 5","The requirements of Sentence 5.2.8.4.(1) need not be met while the equipment is in defrost cycle."]
["Message 6 ","The NECB permits but does not require that independent perimeter heating and cooling be used in the building. If the building does not include perimeter heating and cooling system(s), click N/A."]
["Message 7","As per Sentence 4.2.1.3.(2), if the building area method is chosen, the individual power allowances in each space of the building do not have to be met, provided the total installed interior lighting power is not exceeded. "]
[]
[]
[null,null,"Split system"]
[null,null,"Single-package system"]
[null,null,"Air conditioners, all electric phases, split and single-package"]
[null,null,"Heat pumps, split and single package"]
[null,null,"SPVAC and SPVHP in cooling mode"]
[null,null,"SPVHP in heating mode"]
[null,null,"Evaporatively cooled"]
[null,null,"Evaporatively cooled and water evaporatively cooled, split and single-package"]
[null,null,"Water evaporatively cooled air conditioners, split and single-package "]
[null,null,"Air-cooled and water evaporatively cooled"]
[null,null,"Air-cooled"]
[null,null,"Water evaporatively cooled"]
[null,null,"Ground-source and water-source heat pumps"]
[null,null,"Internal water-loop heat pumps"]
[null,null,"Water-cooled air conditioners"]
[null,null,"Direct-expansion ground-source heat pumps"]
[null,null,"PTAC"]
[null,null,"PTHP in cooling mode"]
[null,null,"PTHP in heating mode"]
[null,null,"Room air conditioners with reverse cycle"]
[null,null,"with louvered sides"]
[null,null,"without louvered sides"]
[null,null,"Room air conditioners without reverse cycle"]
[null,null,"Room air conditioners with louvered sides, with reverse cycle"]
[null,null,"Room air conditioners without louvered sides"]
[null,null,"Room air conditioner heat pumps with louvered sides"]
[null,null,"Room air conditioner heat pumps without louvered sides"]
[null,null,"Room air conditioner, casement only"]
[null,null,"Room air conditioner, casement slider"]
[null,null,"Air conditioners, air-cooled"]
[null,null,"Air conditioners, water-cooled"]
[null,null,"Air conditioners, water-cooled with fluid economizer"]
[null,null,"Air conditioners, glycol-cooled"]
[null,null,"Air conditioners, glycol-cooled with fluid economizer"]
[null,null,"Chilled water air handler"]
[null,null,"Vapour compression, air- or water-cooled, electrically operated"]
[null,null,"Absorption, single- or double-effect, indirect-"]
[null,null,"or direct-fired"]
[null,null,"Electric boilers"]
[null,null,"Gas-fired boilers"]
[null,null,"Oil-fired boilers (No. 2 oil)"]
[null,null,"Oil-fired boilers, residual (No. 5 or No. 6 oil) and other oils"]
[null,null,"Gas-fired warm-air furnaces"]
[null,null,"Gas-fired duct furnace"]
[null,null,"Gas-fired unit heater"]
[null,null,"Gas-fired outdoor packaged units"]
[null,null,"Oil-fired warm-air furnace"]
[null,null,"Oil-fired duct furnaceand unit heaters"]
[null,null,"Cooling tower - centrifugal fan, direct-contact"]
[null,null,"Cooling tower - propeller or axial fan, direct-contact"]
[null,null,"Cooling tower - centrifugal fan, indirect-contact evaporative"]
[null,null,"Cooling tower - propeller or axial fan, indirect-contact evaporative"]
[null,null,"Condenser - centrifugal, indirect-contact evaporative"]
[null,null,"Condenser - propeller or axial fan, indirect-contact evaporative"]
[null,null,"Condenser - air cooled"]

{"sheet":"Code Tables","index":17,"n_rows":213,"n_cols":32,"rows_kept":213,"cut":false,"hidden":true,"merged":[[197,13,198,13],[197,14,198,14],[197,15,203,15],[200,13,201,13],[200,14,201,14],[202,14,203,14],[189,14,191,14],[189,15,191,15],[192,15,194,15],[193,14,194,14],[182,13,184,13],[182,14,184,14],[182,15,184,15],[182,16,184,16],[187,14,188,14],[164,14,181,14],[164,15,172,15],[173,15,178,15],[179,15,181,15],[150,14,163,14],[128,15,129,15],[130,13,141,13],[130,14,141,14],[130,15,131,15],[132,15,133,15],[134,15,135,15],[136,15,137,15],[138,15,139,15],[140,15,141,15],[143,13,145,13],[143,14,145,14],[146,13,149,13],[146,14,149,14],[146,15,149,15],[126,13,127,13],[126,14,127,14],[128,13,129,13],[128,14,129,14],[121,13,124,13],[121,14,122,14],[121,15,124,15],[123,14,124,14],[110,15,112,15],[113,13,118,13],[113,15,115,15],[116,15,118,15],[119,13,120,13],[119,14,120,14],[119,15,120,15],[99,13,100,13],[99,15,100,15],[99,16,100,16],[101,13,112,13],[101,14,112,14],[101,15,103,15],[104,15,106,15],[107,15,109,15],[65,13,68,13],[89,15,92,15],[93,13,95,13],[94,14,95,14],[96,13,98,13],[97,14,98,14],[69,13,92,13],[69,14,92,14],[69,15,72,15],[73,15,76,15],[77,15,80,15],[81,15,84,15],[85,15,88,15],[51,15,52,15],[53,14,68,14],[53,15,54,15],[55,15,56,15],[57,15,58,15],[59,15,60,15],[61,15,62,15],[63,15,64,15],[65,15,66,15],[67,15,68,15]]}
[null,"Part 3"]
[null,null,null,null,null,null,null,null,null,null,null,null,null,null,null,null,null,"Table 3.2.2.4.",null,null,null,null,null,null,null,"Table 3.2.3.1"]
[null,"Assembly","Zone 4 <3000","Zone 5: 3000 to 3999","Zone 6: 4000 to 4999","Zone 7A: 5000 to 5999","Zone 7B 6000 to 6999","Zone 8 ≥ 7000",null,null,null,null,null,null,null,null,null,"Component","Zone 4 <3000","Zone 5: 3000 to 3999","Zone 6: 4000 to 4999","Zone 7A: 5000 to 5999","Zone 7B 6000 to 6999","Zone 8 ≥ 7000",null,"Assemblies in Contact with the Ground","Zone 4 <3000","Zone 5: 3000 to 3999","Zone 6: 4000 to 4999","Zone 7A: 5000 to 5999","Zone 7B 6000 to 6999","Zone 8 ≥ 7000"]
["Table 3.2.2.2.","Wall",0.315,0.27800000000000002,0.247,0.21,0.21,0.183,null,null,null,null,null,null,null,null,null,"All Doors",2.4,2.2000000000000002,2.2000000000000002,2.2000000000000002,2.2000000000000002,1.6,null,"Walls",0.56799999999999995,0.379,0.28399999999999997,0.28399999999999997,0.28399999999999997,0.21]
[null,"Roof",0.193,0.156,0.156,0.13800000000000001,0.13800000000000001,0.121,null,null,null,null,null,null,null,null,null,null,null,null,null,null,null,null,null,"Roofs",0.56799999999999995,0.379,0.28399999999999997,0.28399999999999997,0.28399999999999997,0.21]
[null,"Floor",0.22700000000000001,0.183,0.183,0.16200000000000001,0.16200000000000001,0.14199999999999999,null,null,null,null,null,null,null,null,null,null,null,null,null,null,null,null,null,"Floors",0.75700000000000001,0.75700000000000001,0.75700000000000001,0.75700000000000001,0.75700000000000001,0.379]
["Table 3.2.2.3.","Fenestration",2.1,1.9,1.9,1.9,1.9,1.4]
["Table 3.2.2.4.","Doors",2.1,1.9,1.9,1.9,1.9,1.4]
["Table 3.2.3.1.","Underground Walls",0.56799999999999995,0.379,0.28399999999999997,0.28399999999999997,0.28399999999999997,0.21]
[null,"Underground Roofs",0.56799999999999995,0.379,0.28399999999999997,0.28399999999999997,0.28399999999999997,0.21]
[null,"Underground Floors",0.75700000000000001,0.75700000000000001,0.75700000000000001,0.75700000000000001,0.75700000000000001,0.379]
[]
[]
[]
[]
[]
[]
[]
[]
[]
[]
[]
[null,"FDWR Requirements Article 3.2.1.4.",null,null,null,null,null,null,"Lighting Power Density by Building Type for Use with the Building Area Method"]
[null,"Zone 4 <3000","Zone 5: 3000 to 3999","Zone 6: 4000 to 4999","Zone 7A: 5000 to 5999","Zone 7B 6000 to 6999","Zone 8 ≥ 7000",null,"Forming Part of Sentences 4.2.1.5.(1), (4) and (5)",null,null,null,null,null,null,null," Table 6.2.2.1."]
[1,0.4,0.4,{"$f":"(2000-(0.2*HDD))/3000","v":0.66666666666666663},{"$f":"(2000-(0.2*HDD))/3000","v":0.66666666666666663},{"$f":"(2000-(0.2*HDD))/3000","v":0.66666666666666663},0.2,null,"Building Type","Lighting Power Density, W/m2",null,null,null,null,null,null,"Electric, storage-type; Input ≤ 12 kW; Capacity 50-270 L","SL ≤ 35 + 0.20Vr (top inlet); SL ≤ 40 + 0.20Vr (bottom inlet); "]
[null,null,null,null,null,null,null,null,"Automotive facility",7.6,null,null,null,null,null,null,"Electric, storage-type; Capacity > 270 and ≤ 454 L","SL ≤ 0.472Vr - 38.5 (top inlet); SL ≤ 0.472Vr - 33.5 (bottom inlet); "]
[null,null,null,null,null,null,null,null,"Convention centre",8.1999999999999993,null,null,null,null,null,null,"Electric, storage-type; Input > 12 kW; Capacity > 454 L","Et ≥ 98%"]
[null,null,null,null,null,null,null,null,"Courthouse",9.6999999999999993,null,null,null,null,null,null,"Electric, instantaneous; Input > 12 kW","Et ≥ 98%"]
[null,null,null,null,null,null,null,null,"Dining: bar lounge/leisure",9.6999999999999993,null,null,null,null,null,null,"Heat pump water heaters; Input ≤ 24 A and ≤ 250 V","EF ≥ 2.1"]
[null,null,null,null,null,null,null,null,"Dining: cafeteria/fast food",8.5,null,null,null,null,null,null,"Gas-fired, storage type; Input < 22 kW","EF ≥ 0.67 - 0.0005Vr"]
[null,null,null,null,null,null,null,null,"Dining: family",8.4,null,null,null,null,null,null,"Gas-fired, storage type; Input 22 - 117 kW","Et ≥ 80%"]
[null,null,null,null,null,null,null,null,"Dormitory",6.6,null,null,null,null,null,null,"Gas-fired, storage type; Input > 117 kW, Input/Vt < 310 ","Et ≥ 80%"]
[null,null,null,null,null,null,null,null,"Exercise centre",7,null,null,null,null,null,null,"Gas-fired, storage type; Input > 117 kW, Vt < 37.8 L","Et ≥ 80%"]
[null,null,null,null,null,null,null,null,"Fire station",5.7,null,null,null,null,null,null,"Gas-fired, storage type; Input > 117 kW, Vt ≥ 37.8 L","Et ≥ 77%"]
[null,null,null,null,null,null,null,null,"Gymnasium",7.3,null,null,null,null,null,null,"Gas-fired, instantaneous","EF ≥ 0.8%"]
[null,null,null,null,null,null,null,null,"Health care clinic",8.8000000000000007,null,null,null,null,null,null,"Oil-fired, instantaneous; Input ≤ 61.5 kW","EF ≥ 0.59 - 0.0005 Vm"]
[null,null,null,null,null,null,null,null,"Hospital",11.3,null,null,null,null,null,null,"Oil-fired, instantaneous; Input Others; Input/Vt < 310","Et ≥ 78%; SL ≤ 1.3 + 95/Vr"]
[null,null,null,null,null,null,null,null,"Hotel/Motel",8.1,null,null,null,null,null,null,"Oil-fired, instantaneous; Input Others; Vt < 37.8 L","Et ≥ 80%"]
[null,null,null,null,null,null,null,null,"Library",8.4,null,null,null,null,null,null,"Oil-fired, instantaneous; Input Others; Vt ≥ 37.8 L","Et ≥ 77%; SL ≤ 2.3 + 67/Vr"]
[null,null,null,null,null,null,null,null,"Manufacturing facility",9.6999999999999993,null,null,null,null,null,null,"Oil-fired, storage type; Input ≤ 30.5 kW","EF ≥ 0.59 - 0.0005 Vr"]
[null,null,null,null,null,null,null,null,"Motion picture theatre",8.9,null,null,null,null,null,null,"Oil-fired, storage type; Input > 30.5 kW; Input/Vt < 310","EF ≥ 0.55"]
[null,null,null,null,null,null,null,null,"Multi-unit residential building",7.3,null,null,null,null,null,null,"Oil-fired, storage type; Input > 30.5 kW; Vt < 37.8","EF ≥ 0.55"]
[null,null,null,null,null,null,null,null,"Museum",11.4,null,null,null,null,null,null,"Oil-fired, storage type; Input > 30.5 kW; Vt ≥ 37.8","EF ≥ 0.55; SL ≤ 2.3 + 67/Vr"]
[null,null,null,null,null,null,null,null,"Office",8.5,null,null,null,null,null,null,"Pool Heaters -  Gas-fired; input < 117.2 kW","Et ≥ 78%"]
[null,null,null,null,null,null,null,null,"Penitentiary",8.1,null,null,null,null,null,null,"Pool Heaters -  Oil-fired","Et ≥ 78%"]
[null,null,null,null,null,null,null,null,"Performing arts theatre",12.7,null,null,null,null,null,null,"-","-"]
[null,null,null,null,null,null,null,null,"Police station",8.6]
[null,null,null,null,null,null,null,null,"Post office",7.2]
[null,null,null,null,null,null,null,null,"Religious building ",10.1]
[null,null,null,null,null,null,null,null,"Retail area",11.4]
[null,null,null,null,null,null,null,null,"School/university",8.6999999999999993,null,null,"Component or Equipment","Cooling or Heating Capacity, kW (Btu/h)","Standard","Rating Conditions(1)","Minimum Performance(2)"]
[null,null,null,null,null,null,null,null,"Sports arena",9.4,null,null,"Split system","< 19 (65 000)","CSA C656","—","SEER = 15(3)"]
[null,null,null,null,null,null,null,null,"Storage garage",1.6,null,null,"Single-package system","< 19 (65 000)","CSA C656",null,"SEER = 14(3)"]
[null,null,null,null,null,null,null,null,"Town hall",8.6,null,null,"Air conditioners, all electric phases, split and single-package","≥ 19 (65 000) and","CAN/CSA-C746","≥ 19 kW and < 40 kW, electric resistance heating section or no heating section","COP = 3.28(3)"]
[null,null,null,null,null,null,null,null,"Transportation facility",6.6,null,null,"Heat pumps, split and single package","< 223 (760 000)",null,null,"ICOP = 3.34"]
[null,null,null,null,null,null,null,null,"Warehouse",5.2,null,null,"SPVAC and SPVHP in cooling mode",null,null,"≥ 19 kW and < 40 kW, non-electric heating section","COP = 3.22(3)"]
[null,null,null,null,null,null,null,null,"Workshop",9.6999999999999993,null,null,"SPVHP in heating mode",null,null,null,"ICOP = 3.28"]
[null,null,null,null,null,null,null,null,null,null,null,null,"Evaporatively cooled",null,null,"≥ 40 kW and < 70 kW, electric resistance heating section or no heating section","COP = 3.22(3)"]
[null,null,null,null,null,null,null,null,"Atrium < 6 m in height",1.06,null,null,"Evaporatively cooled and water evaporatively cooled, split and single-package",null,null,null,"ICOP = 3.28"]
[null,null,null,null,null,null,null,null,"Atrium between 6 m and 12 m in height",1.06,null,null,"Water evaporatively cooled air conditioners, split and single-package ",null,null,"≥ 40 kW and < 70 kW, non-electric heating section","COP = 3.17(3)"]
[null,null,null,null,null,null,null,null,"Atrium > 12 m in height",0.71,4.3,null,"Air-cooled and water evaporatively cooled",null,null,null,"ICOP = 3.22"]
[null,null,null,null,null,null,null,null,"Audience seating area – permanent for auditorium",6.8,null,null,"Air-cooled",null,null,"≥ 70 kW and < 223 kW, electric resistance heating section or no heating section","COP = 2.93(3)"]
[null,null,null,null,null,null,null,null,"Audience seating area – permanent for convention centre",8.8000000000000007,null,null,"Water evaporatively cooled",null,null,null,"ICOP = 2.96"]
[null,null,null,null,null,null,null,null,"Audience seating area – permanent for gymnasium",7,null,null,"Ground-source and water-source heat pumps",null,null,"≥ 70 kW and < 223 kW, non-electric heating section","COP = 2.87(3)"]
[null,null,null,null,null,null,null,null,"Audience seating area – permanent for motion picture theatre",12.3,null,null,"Internal water-loop heat pumps",null,null,null,"ICOP = 2.90"]
[null,null,null,null,null,null,null,null,"Audience seating area – permanent for penitentiary",3,null,null,"Water-cooled air conditioners","≥ 223 (760 000)",null,"≥ 223 kW, electric resistance heating section or no heating section","COP = 2.84(3)"]
[null,null,null,null,null,null,null,null,"Audience seating area – permanent for performing arts theatre",21.8,null,null,"Direct-expansion ground-source heat pumps",null,null,null,"ICOP = 2.87"]
[null,null,null,null,null,null,null,null,"Audience seating area – permanent for religious building",16.5,null,null,"PTAC",null,null,"≥ 223 kW, non-electric heating section","COP = 2.78(3)"]
[null,null,null,null,null,null,null,null,"Audience seating area – permanent for sports arena",4.5999999999999996,null,null,"PTHP in cooling mode",null,null,null,"ICOP = 2.81"]
[null,null,null,null,null,null,null,null,"Audience seating area – permanent other",4.5999999999999996,null,null,"PTHP in heating mode","≥ 19 (65 000)","CAN/CSA-C746","≥ 19 kW and < 40 kW, electric resistance heating section or no heating section","EER = 11.0"]
[null,null,null,null,null,null,null,null,"Banking activity area and offices",9.3000000000000007,null,null,"Room air conditioners with reverse cycle",null,null,null,"Heating COP ≥ 3.3 at 8.3°C"]
[null,null,null,null,null,null,null,null,"Classroom/Lecture hall/Training room for penitentiary",14.4,null,null,"with louvered sides",null,null,null,"Heating COP ≥ 2.25 at –8.3°C"]
[null,null,null,null,null,null,null,null,"Classroom/Lecture hall/Training room other",10.3,null,null,"without louvered sides",null,null,null,"ICOP = 3.28 (IEER = 11.2)"]
[null,null,null,null,null,null,null,null,"Computer/Server room",14.3,null,null,"Room air conditioners without reverse cycle",null,null,"≥ 19 kW and < 40 kW, non-electric heating section","EER = 10.8"]
[null,null,null,null,null,null,null,null,"Conference/Meeting/ Multi-purpose room",11.5,null,null,"Room air conditioners with louvered sides, with reverse cycle",null,null,null,"Heating COP ≥ 3.3 at 8.3°C"]
[null,null,null,null,null,null,null,null,"Confinement cell",8.6999999999999993,null,null,"Room air conditioners without louvered sides",null,null,null,"Heating COP ≥ 2.25 at –8.3°C"]
[null,null,null,null,null,null,null,null,"Copy/Print room",6,null,null,"Room air conditioner heat pumps with louvered sides",null,null,null,"ICOP = 3.22 (IEER = 11.0)"]
[null,null,null,null,null,null,null,null,"Corridor/Transition area for hospital",9.9,null,null,"Room air conditioner heat pumps without louvered sides",null,null,"≥ 40 kW and < 70 kW, electric resistance heating section or no heating section","EER = 10.6"]
[null,null,null,null,null,null,null,null,"Corridor/Transition area for manufacturing facility",3.1,null,null,"Room air conditioner, casement only",null,null,null,"Heating COP ≥ 3.2 at 8.3°C"]
[null,null,null,null,null,null,null,null,"Corridor/Transition area for space designed to ANSI/IES RP-28 (and used primarily by residents)",6.9,null,null,"Room air conditioner, casement slider",null,null,null,"Heating COP ≥ 2.05 at –8.3°C"]
[null,null,null,null,null,null,null,null,"Corridor/Transition area other",7.1,null,null,"Air conditioners, air-cooled",null,null,null,"ICOP = 3.14 (IEER = 10.7)"]
[null,null,null,null,null,null,null,null,"Courtroom",15,null,null,"Air conditioners, water-cooled",null,null,"≥ 40 kW and < 70 kW, non-electric heating section","EER = 10.4"]
[null,null,null,null,null,null,null,null,"Dining area for bar lounge/leisure dining",10,null,null,"Air conditioners, water-cooled with fluid economizer",null,null,null,"Heating COP ≥ 3.2 at 8.3°C"]
[null,null,null,null,null,null,null,null,"Dining area for cafeteria/fast food dining",6.8,null,null,"Air conditioners, glycol-cooled",null,null,null,"Heating COP ≥ 2.05 at –8.3°C"]
[null,null,null,null,null,null,null,null,"Dining area for family dining",7.6,null,null,"Air conditioners, glycol-cooled with fluid economizer",null,null,null,"ICOP = 3.08 (IEER = 10.5)"]
[null,null,null,null,null,null,null,null,"Dining area for penitentiary",10.3,null,null,"Chilled water air handler",null,null,"≥ 70 kW, electric resistance heating section or no heating section","EER = 9.5"]
[null,null,null,null,null,null,null,null,"Dining area for space designed to ANSI/IES RP-28 (and used primarily by residents)",21.5,null,null,"Vapour compression, air- or water-cooled, electrically operated",null,null,null,"Heating COP = 3.2 at 8.3°C"]
[null,null,null,null,null,null,null,null,"Dining area other",6.8,null,null,"Absorption, single- or double-effect, indirect-",null,null,null,"Heating COP = 2.05 at –8.3°C"]
[null,null,null,null,null,null,null,null,"Dressing/Fitting room for performing arts theatre",6.6,null,null,"or direct-fired",null,null,null,"ICOP = 2.81 (IEER = 9.6)"]
[null,null,null,null,null,null,null,null,"Electrical/Mechanical room",4.5999999999999996,null,null,"Electric boilers",null,null,"≥ 70 kW, non-electric heating section","EER = 9.3"]
[null,null,null,null,null,null,null,null,"Emergency vehicle garage",4.4000000000000004,null,null,"Gas-fired boilers",null,null,null,"Heating COP = 3.2 at 8.3°C"]
[null,null,null,null,null,null,null,null,"Food preparation area",11.4,null,null,"Oil-fired boilers (No. 2 oil)",null,null,null,"Heating COP = 2.05 at –8.3°C"]
[null,null,null,null,null,null,null,null,"Guest room",8.3000000000000007,null,null,"Oil-fired boilers, residual (No. 5 or No. 6 oil) and other oils",null,null,null,"ICOP = 2.75 (IEER = 9.4)"]
[null,null,null,null,null,null,null,null,"Laboratory for classroom",12.9,null,null,"Gas-fired warm-air furnaces","—","ANSI/AHRI 390","< 19 kW","EER = 10(3)"]
[null,null,null,null,null,null,null,null,"Laboratory other",15.6,null,null,"Gas-fired duct furnace",null,"CAN/CSA-C746","≥ 19 kW and < 40 kW","EER = 9.5(3)"]
[null,null,null,null,null,null,null,null,"Laundry/Washing area",4.5999999999999996,null,null,"Gas-fired unit heater",null,null,"≥ 40 kW and < 70 kW","EER = 8.6(3)"]
[null,null,null,null,null,null,null,null,"Loading dock – interior",6.2,null,null,"Gas-fired outdoor packaged units","—","ANSI/AHRI 390","< 19 kW","COP = 3.1(3)"]
[null,null,null,null,null,null,null,null,"Lobby for elevator",7.3,null,null,"Oil-fired warm-air furnace",null,"CAN/CSA-C746","≥ 19 kW and < 40 kW","COP = 3.0(3)"]
[null,null,null,null,null,null,null,null,"Lobby for hotel",11.4,null,null,"Oil-fired duct furnaceand unit heaters",null,null,"≥ 40 kW and < 70 kW","COP = 2.9(3)"]
[null,null,null,null,null,null,null,null,"Lobby for motion picture theatre",4.8,null,null,null,"< 19 (65 000)","ANSI/AHRI 210/240 or","< 19 kW","COP = 3.54"]
[null,null,null,null,null,null,null,null,"Lobby for performing arts theatre",18.3,null,null,null,null,"CTI STD-201OM"]
[null,null,null,null,null,null,null,null,"Lobby for space designed to ANSI/IES RP-28 (and used primarily by residents)",21.8,null,null,null,"≥ 19 (65 000) and < 70 (240 000)","CAN/CSA-C746 and ANSI/AHRI 340/360 (for IEER)","≥ 19 kW and < 40 kW, electric resistance heating section or no heating section","COP = 3.37(3)"]
[null,null,null,null,null,null,null,null,"Lobby other",10.8,null,null,null,null,null,null,"ICOP = 3.43"]
[null,null,null,null,null,null,null,null,"Locker room",5.2,null,null,null,null,null,null,"(IEER = 11.7)"]
[null,null,null,null,null,null,null,null,"Lounge/Break room for health care facility",8.4,null,null,null,null,null,"≥ 19 kW and < 40 kW, non-electric heating section","COP = 3.31(3)"]
[null,null,null,null,null,null,null,null,"Lounge/Break room other",6.7,null,null,null,null,null,null,"ICOP = 3.37"]
[null,null,null,null,null,null,null,null,"Office enclosed, ≤ 25 m2",10,null,null,null,null,null,null,"(IEER = 11.5)"]
[null,null,null,null,null,null,null,null,"Office enclosed, > 25 m2",10,null,null,null,null,null,"≥ 40 kW and < 70 kW, electric resistance heating section or no heating section","COP = 3.22(3)"]
[null,null,null,null,null,null,null,null,"Office open plan",8.6999999999999993,null,null,null,null,null,null,"ICOP = 3.28"]
[null,null,null,null,null,null,null,null,"Pharmacy area",14.4,null,null,null,null,null,null,"(IEER = 11.2)"]
[null,null,null,null,null,null,null,null,"Sales area",13.1,null,null,null,null,null,"≥ 40 kW and < 70 kW, non-electric heating section","COP = 3.17(3)"]
[null,null,null,null,null,null,null,null,"Seating area – general",4.5999999999999996,null,null,null,null,null,null,"ICOP = 3.22"]
[null,null,null,null,null,null,null,null,"Stairway","The LPD and lighting control requirements for a stairway shall be the same as those for the space containing the stairway.",null,null,null,null,null,null,"(IEER = 11.0)"]
[null,null,null,null,null,null,null,null,"Stairwell",6.2,null,null,null,"≥ 70 (240 000)","ANSI/AHRI 340/360 or","≥ 70 kW, electric resistance heating section or no heating section","COP = 3.22(3)"]
[null,null,null,null,null,null,null,null,"Storage garage – interior",1.5,null,null,null,null,"CTI STD-201OM",null,"ICOP = 3.25"]
[null,null,null,null,null,null,null,null,null,null,null,null,null,null,null,null,"(IEER = 11.1)"]
[null,null,null,null,null,null,null,null,"Storage room < 5 m2",10.4,null,null,null,null,null,"≥ 70 kW, non-electric heating section","COP = 3.17(3)"]
[null,null,null,null,null,null,null,null,"Storage room ≥ 5 m2 and ≤ 100 m2",6.8,null,null,null,null,null,null,"ICOP = 3.19"]
[null,null,null,null,null,null,null,null,"Storage room > 100 m2",6.8,null,null,null,null,null,null,"(IEER = 10.9)"]
[null,null,null,null,null,null,null,null,"Vehicle maintenance area",6,null,null,null,"≥ 19 (65 000) and < 70 (240 000)","CAN/CSA-C746","—","EER = 11.2 for air-cooled"]
[null,null,null,null,null,null,null,null,"Washroom for space designed to ANSI/IES RP-28 (and used primarily by residents)",13.1,null,null,null,null,null,null,"EER = 13.1 for water-cooled"]
[null,null,null,null,null,null,null,null,"Washroom other",9.1,null,null,null,"≥ 70 (240 000)","ANSI/AHRI 366 (SI)","≥ 70 kW","COP = 2.96"]
[null,null,null,null,null,null,null,null,"Workshop",12.3,null,null,null,null,null,null,"IPLV = 3.28"]
[null,null,null,null,null,null,null,null,"Convention centre – exhibit space",9.5,null,null,null,null,"CTI STD-201OM",null,"COP = 3.84"]
[null,null,null,null,null,null,null,null,"Dormitory – living quarters",5.8,null,null,null,null,null,null,"IPLV = 3.84"]
[null,null,null,null,null,null,null,null,"Fire station – sleeping quarters",2.2000000000000002,null,null,null,"< 35 (119 500)","CAN/CSA-C13256-1(4)","—","See standard(3)"]
[null,null,null,null,null,null,null,null,"Gymnasium/Fitness centre exercise area",5.4,null,null,null,"< 40 (136 500)","CAN/CSA-C13256-1","< 5 kW","Cooling COP = 3.28 at 30°C inlet water and heating COP = 4.2 at 20°C inlet water"]
[null,null,null,null,null,null,null,null,"Gymnasium/Fitness centre playing area",8.8000000000000007,null,null,null,null,null,"5–40 kW","Cooling COP = 3.52 at 30°C inlet water and heating COP = 4.2 at 20°C inlet water"]
[null,null,null,null,null,null,null,null,"Health care facility exam/treatment room",18.100000000000001,null,null,null,"< 19 (65 000)","ANSI/AHRI 210/240 or CTI STD-201OM","< 19 kW","COP = 3.54(3)"]
[null,null,null,null,null,null,null,null,"Health care facility imaging room",11.4,null,null,null,null,null,null,"ICOP = 3.60"]
[null,null,null,null,null,null,null,null,"Health care facility medical supply room",5.8,null,null,null,"≥ 19 (65 000)","ANSI/AHRI 340/360 or CTI STD-201OM","≥ 19 kW and < 40 kW, electric resistance heating or no heating section","COP = 3.37(3)"]
[null,null,null,null,null,null,null,null,"Health care facility nursery",10.8,null,null,null,null,null,null,"ICOP = 3.43"]
[null,null,null,null,null,null,null,null,"Health care facility nurses' station",8.6999999999999993,null,null,null,null,null,"≥ 19 kW and < 40 kW, non-electric heating section","COP = 3.31(3)"]
[null,null,null,null,null,null,null,null,"Health care facility operating room",23.4,null,null,null,null,null,null,"ICOP = 3.37"]
[null,null,null,null,null,null,null,null,"Health care facility patient room",6.7,null,null,null,null,null,"≥ 40 kW and < 70 kW, electric resistance heating or no heating section","COP = 3.22(3)"]
[null,null,null,null,null,null,null,null,"Health care facility physical therapy room",9,null,null,null,null,null,null,"ICOP = 3.28"]
[null,null,null,null,null,null,null,null,"Health care facility recovery room",11.1,null,null,null,null,null,"≥ 40 kW and < 70 kW, non-electric heating section","COP = 3.17(3)"]
[null,null,null,null,null,null,null,null,"Library reading area",8.8000000000000007,null,null,null,null,null,null,"ICOP = 3.22"]
[null,null,null,null,null,null,null,null,"Library stacks",12.9,null,null,null,null,null,"≥ 70 kW, electric resistance heating or no heating section","COP = 3.22(3)"]
[null,null,null,null,null,null,null,null,"Manufacturing facility detailed manufacturing area",10,null,null,null,null,null,null,"ICOP = 3.25"]
[null,null,null,null,null,null,null,null,"Manufacturing facility equipment room",7,null,null,null,null,null,"≥ 70 kW, non-electric heating section","COP = 3.17(3)"]
[null,null,null,null,null,null,null,null,"Manufacturing facility extra high bay area (> 15 m floor-to-ceiling height)",11.3,null,null,null,null,null,null,"ICOP = 3.19"]
[null,null,null,null,null,null,null,null,"Manufacturing facility high bay area (7.5 m to 15 m floor-to-ceiling height)",8.1,null,null,null,"≤ 21 (71 700)","CSA C748","—","See standard"]
[null,null,null,null,null,null,null,null,"Manufacturing facility low bay area (< 7.5 m floor-to-ceiling height)",10.3,null,null,null,"All capacities","AHRI 310/380/CSA C744","New construction","COP = 3.66 – (0.213 x Capc/1000)(3)"]
[null,null,null,null,null,null,null,null,"Museum general exhibition area",11.3,null,null,null,null,null,"New construction","COP = 3.6 – (0.213 x Capc/1000)(3)"]
[null,null,null,null,null,null,null,null,"Museum restoration room",9.1999999999999993,null,null,null,null,null,"New construction","COP = 3.2 – (0.026 x Capc/1000)(3)"]
[null,null,null,null,null,null,null,null,"Post office – sorting area",7.3,null,null,null,"≤ 10.55 (36 000)","CSA C368.1","—"]
[null,null,null,null,null,null,null,null,"Religious building fellowship hall",5.9,null,null,null,null,null,null,"EER = 9.0(3)"]
[null,null,null,null,null,null,null,null,"Religious building worship/pulpit/choir area",16.5,null,null,null,null,null,null,"EER = 8.5(3)"]
[null,null,null,null,null,null,null,null,"Retail facility dressing/fitting room",5.4,null,null,null,null,null,null,"See standard(3)"]
[null,null,null,null,null,null,null,null,"Retail facility mall concourse ",9.6999999999999993,null,null,null,"< 1.8 (6 150)","CSA C368.1","< 1.8 kW","COP = 2.84(3)"]
[null,null,null,null,null,null,null,null,"Space designed to ANSI/IES RP-28 chapel (used primarily by residents)",11.4,null,null,null,"≥ 1.8 (6 150) and < 2.3 (7 800)",null,"≥ 1.8 kW and < 2.3 kW","COP = 2.84(3)"]
[null,null,null,null,null,null,null,null,"Space designed to ANSI/IES RP-28 recreation room (used primarily by residents)",19.399999999999999,null,null,null,"≥ 2.3 (7 800) and < 4.1 (14 000)",null,"≥ 2.3 kW and < 4.1 kW","COP = 2.87(3)"]
[null,null,null,null,null,null,null,null,"Sports arena – playing area Class I facility",26.6,null,null,null,"≥ 4.1 (14 000) and < 5.9 (20 150)",null,"≥ 4.1 kW and < 5.9 kW","COP = 2.84(3)"]
[null,null,null,null,null,null,null,null,"Sports arena – playing area Class II facility",21.1,null,null,null,"≥ 5.9 (20 150)",null,"≥ 5.9 kW","COP = 2.49(3)"]
[null,null,null,null,null,null,null,null,"Sports arena – playing area Class III facility",18.3,null,null,null,"< 2.3 (7 800)",null,"< 2.3 kW","COP = 2.64(3)"]
[null,null,null,null,null,null,null,null,"Sports arena – playing area Class IV facility",12.2,null,null,null,"≥ 2.3 (7 800) and < 5.9 (20 150)",null,"≥ 2.3 kW and < 5.9 kW","COP = 2.49"]
[null,null,null,null,null,null,null,null,"Transportation facility airport concourse",3.3,null,null,null,"≥ 5.9 (20 150)",null,"≥ 5.9 kW","COP = 2.49(3)"]
[null,null,null,null,null,null,null,null,"Transportation facility baggage/carousel area",4.8,null,null,null,"< 5.9 (20 150)",null,"< 5.9 kW","COP = 2.65(3)"]
[null,null,null,null,null,null,null,null,"Transportation facility terminal ticket counter",6.7,null,null,null,"≥ 5.9 (20 150)",null,"≥ 5.9 kW","COP = 2.49(3)"]
[null,null,null,null,null,null,null,null,"Warehouse – storage area medium to bulky palletized items",3.8,null,null,null,"< 4.1 (14 000)",null,"< 4.1 kW","COP = 2.49(3)"]
[null,null,null,null,null,null,null,null,"Warehouse – storage area small hand-carried items",7.4,null,null,null,"≥ 4.1 (14 000)",null,"≥ 4.1 kW","COP = 2.34(3)"]
[null,null,null,null,null,null,null,null,null,null,null,null,null,"All capacities",null,"All capacities","COP = 2.55(3)"]
[null,null,null,null,null,null,null,null,null,null,null,null,null,"All capacities",null,"All capacities","COP = 2.78(3)"]
[null,null,null,null,null,null,null,null,null,null,null,null,null,"< 19 (65 000)","ANSI/ASHRAE 127","—","SCOP = 2.20 / 2.09"]
[null,null,null,null,null,null,null,null,null,null,null,null,null,"≥ 19 (65 000) and < 70 (240 000)",null,null,"SCOP = 2.10 / 1.99"]
[null,null,null,null,null,null,null,null,null,null,null,null,null,"≥ 70 (240 000)",null,null,"SCOP = 1.90 / 1.79"]
[null,null,null,null,null,null,null,null,null,null,null,null,null,"< 19 (65 000)",null,null,"SCOP = 2.60 / 2.49"]
[null,null,null,null,null,null,null,null,null,null,null,null,null,"≥ 19 (65 000) and < 70 (240 000)",null,null,"SCOP = 2.50 / 2.39"]
[null,null,null,null,null,null,null,null,null,null,null,null,null,"≥ 70 (240 000)",null,null,"SCOP = 2.40 / 2.29"]
[null,null,null,null,null,null,null,null,null,null,null,null,null,"< 19 (65 000)",null,null,"SCOP = 2.55 / 2.44"]
[null,null,null,null,null,null,null,null,null,null,null,null,null,"≥ 19 (65 000) and < 70 (240 000)",null,null,"SCOP = 2.45 / 2.34"]
[null,null,null,null,null,null,null,null,null,null,null,null,null,"≥ 70 (240 000)",null,null,"SCOP = 2.35 / 2.24"]
[null,null,null,null,null,null,null,null,null,null,null,null,null,"< 19 (65 000)",null,"rated at 40% propylene glycol","SCOP = 2.50 / 2.39"]
[null,null,null,null,null,null,null,null,null,null,null,null,null,"≥ 19 (65 000) and < 70 (240 000)",null,null,"SCOP = 2.15 / 2.04"]
[null,null,null,null,null,null,null,null,null,null,null,null,null,"≥ 70 (240 000)",null,null,"SCOP = 2.10 / 1.99"]
[null,null,null,null,null,null,null,null,null,null,null,null,null,"< 19 (65 000)",null,null,"SCOP = 2.45 / 2.34"]
[null,null,null,null,null,null,null,null,null,null,null,null,null,"≥ 19 (65 000) and < 70 (240 000)",null,null,"SCOP = 2.10 / 1.99"]
[null,null,null,null,null,null,null,null,null,null,null,null,null,"≥ 70 (240 000)",null,null,"SCOP = 2.05 / 1.94"]
[null,null,null,null,null,null,null,null,null,null,null,null,null,"< 19 (65 000)",null,"—","SCOP = 8.00 / 6.06"]
[null,null,null,null,null,null,null,null,null,null,null,null,null,"≥ 19 (65 000) and < 70 (240 000)",null,null,"SCOP = 9.00 / 7.06"]
[null,null,null,null,null,null,null,null,null,null,null,null,null,"≥ 70 (240 000)",null,null,"SCOP = 11.00 / 9.06"]
[null,null,null,null,null,null,null,null,null,null,null,null,null,"< 5 600 (19 000 000)","CAN/CSA-C743","—","See Tables 9 to 15 in Standard(3)"]
[]
[]
[null,null,null,null,null,null,null,null,null,null,null,null,null,"—","—","—",-5]
[null,null,null,null,null,null,null,null,null,null,null,null,null,"< 88 (300 000)","ANSI Z21.13/CSA 4.9","—","AFUE = 85%(3)"]
[null,null,null,null,null,null,null,null,null,null,null,null,null,"≥ 88 (300 000) and < 733 (2 500 000)","ANSI Z21.13/CSA 4.9 or ASME PTC 4","—","Et ≥ 83.0%"]
[null,null,null,null,null,null,null,null,null,null,null,null,null,"≥ 733 (2 500 000)",null,"—","Ec ≥ 83.3%"]
[null,null,null,null,null,null,null,null,null,null,null,null,null,"< 88 (300 000)","CSA P.2 or ASME PTC 4","—","AFUE ≥ 84.7%(3)"]
[null,null,null,null,null,null,null,null,null,null,null,null,null,"≥ 88 (300 000) and < 733 (2 500 000)",null,null,"Et ≥ 83.4%"]
[null,null,null,null,null,null,null,null,null,null,null,null,null,"≥ 733 (2 500 000)",null,null,"Ec ≥ 85.8% "]
[null,null,null,null,null,null,null,null,null,null,null,null,null,"< 88 (300 000)","CSA P.2","—","AFUE ≥ 84.7%(3)"]
[null,null,null,null,null,null,null,null,null,null,null,null,null,"≥ 88 (300 000) and < 733 (2 500 000)","ASME PTC 4",null,"Et ≥ 83.4%"]
[null,null,null,null,null,null,null,null,null,null,null,null,null,"≥ 733 (2 500 000)",null,null,"Ec ≥ 85.8%"]
[null,null,null,null,null,null,null,null,null,null,null,null,null,"≤ 66 (225 000)","CSA P.2","—","AFUE ≥ 92.4%(3)"]
[null,null,null,null,null,null,null,null,null,null,null,null,null,"> 66 (225 000)","CAN/CSA-P.8","Maximum rated capacity, steady-state","Et ≥ 81%"]
[null,null,null,null,null,null,null,null,null,null,null,null,null,"≤ 117.23 (400 000)","ANSI Z83.8/CSA 2.6","—","Et ≥ 81%"]
[null,null,null,null,null,null,null,null,null,null,null,null,null,null,null,null,"Et ≥ 82%(3)"]
[null,null,null,null,null,null,null,null,null,null,null,null,null,"> 65.9 kW (225 000) and < 2 930 kW (10 000 000)","CAN/CSA-P.8(8)",null,"Et ≥ 80%"]
[null,null,null,null,null,null,null,null,null,null,null,null,null,"≤ 66 (225 000)","CSA P.2",null,"Et ≥ 84.5%(3)"]
[null,null,null,null,null,null,null,null,null,null,null,null,null,null,null,null,"SEUE ≥ 78%"]
[null,null,null,null,null,null,null,null,null,null,null,null,null,"> 66 (225 000)","CAN/CSA-B140.4",null,"Et ≥ 81.3%"]
[null,null,null,null,null,null,null,null,null,null,null,null,null,"—",null,null,"Et ≥ 81%"]
[]
[null,null,null,null,null,null,null,null,null,null,null,null,"Table 5.2.12.2."]
[null,null,null,null,null,null,null,null,null,null,null,null,"Cooling tower - centrifugal fan, direct-contact"]
[null,null,null,null,null,null,null,null,null,null,null,null,"Cooling tower - propeller or axial fan, direct-contact"]
[null,null,null,null,null,null,null,null,null,null,null,null,"Cooling tower - centrifugal fan, indirect-contact evaporative"]
[null,null,null,null,null,null,null,null,null,null,null,null,"Cooling tower - propeller or axial fan, indirect-contact evaporative"]
[null,null,null,null,null,null,null,null,null,null,null,null,"Condenser - centrifugal, indirect-contact evaporative"]
[null,null,null,null,null,null,null,null,null,null,null,null,"Condenser - propeller or axial fan, indirect-contact evaporative"]
[null,null,null,null,null,null,null,null,null,null,null,null,"Condenser - air cooled"]